Workbook

Sheet Introduction
B1: Energy Data Sheet Introduction
B2: How to use this work book
B3: Italic notes provide helpful tips to fill out these forms - your facility manager, contractor or supplier may be able to assist with completing this workbook. Step 1 - Please fill out the cells in white only. Step 2 - Progress with the sections of this workbook relevant to your project. Step 3 - Submit this workbook with your grant application.
B4: Building Address | E4: Application Number - Official Use Only [ Workbook V2026-2027.01 ]
B8: Annual Energy Consumption of the Base Building (common areas) | E8: Tips and notes
B9: Residential base building electricity annual consumption (kWh) | E9: Residential base building electricity consumption may include common area lighting, air-conditioning, hot water systems, cold water systems, lifts, foyers, gyms, laundries, and swimming pools, etc. It excludes any non-residential spaces (retail and office) electricity consumption.
B10: Residential base building gas and LPG annual consumption (MJ) | E10: If gas utility bills provide the gas consumption in kWh units, please multiply the value by 3.6 to convert to MJ.
B13: Please complete the relevant sections of this workbook.
B14: Energy Efficiency | E14: Upgrades to hot water system, pumps and motors, lifts, air conditioning and ventilation, and including building tuning.
B15: Electrification | E15: Replacement of gas hot water systems, space heating and cooking appliances with an energy efficient electric alternative.
B16: Electric Vehicle | E16: Replacement of a petrol vehicle with a electric vehicle and on-site charger.
B17: Renewables | E17: Installation of new solar photovoltaic systems and/or battery storage

Sheet Energy Efficiency
B1: Energy Data Sheet Energy Efficiency
B3: Project Type Please select from the dropdown list. Where multiple upgrades are proposed, complete additional rows as required. | D3: Project Description & Brief Calculations For example, What standard and energy-efficient options are considered? Where is it located? (max. 50 words) Please also provide a brief description of your calculations. | E3: Standard | F3: Proposed | G3: Measurable Outcome
E4: Estimated annual energy consumption | F4: Estimated annual energy consumption | G4: Estimated annual energy saving | H4: Estimated annual emission reduction -via Grid* | I4: Estimated annual emission reduction -via 100% Renewables*
E5: kWh | F5: kWh | G5: kWh | H5: tCO2-e | I5: tCO2-e
B6: Example | C6: Hot water system | D6: Replacing 1 standard electric hot water system with 1 energy-efficient heat pump hot water system, located in common area gym Calculation: Estimated that the standard system runs for 3 hours per day for 365 days, and electrict heat pump has a *COP of 3.5 Standard est. energy consumption = (3.6kW × 3h × 365 days) = 3,942kWh Proposed est. energy consumption = 3,942kWh / 3.5 (COP) = 1,126kWh | E6: 3942 | F6: 1126 | G6: =E6 - F6 -> 2816 | H6: =G6*'HIDE Setup'!B20 -> 1.57696 | I6: =E6*'HIDE Setup'!B20 -> 2.20752
B7: A | C7: Select | G7: =E7 - F7 -> 0 | H7: =G7*'HIDE Setup'!B20 -> 0 | I7: =E7*'HIDE Setup'!B20 -> 0
B8: =CHAR(CODE(B7)+1) -> B | C8: Select | G8: 0 | H8: =G8*'HIDE Setup'!B20 -> 0 | I8: =E8*'HIDE Setup'!B20 -> 0
B9: C | C9: Select | G9: 0 | H9: =G9*'HIDE Setup'!B20 -> 0 | I9: =E9*'HIDE Setup'!B20 -> 0
B10: Total | E10: =SUM(E7:E9) -> 0 | F10: =SUM(F7:F9) -> 0 | G10: =SUM(G7:G9) -> 0 | H10: =SUM(H7:H9) -> 0 | I10: =SUM(I7:I9) -> 0
C11: Are you looking for information on how to select an energy efficient system? Check out these helpful guides from the Australia Government | E11: CLICK HERE
B12: NOTE | C12: Applicants should demonstrate they have considered multiple options and have proposed an energy‑efficient solution. Standard reflects an average product with the proposed as more energy efficient *Coefficient of Performance (COP) is how much heat energy a system delivers compared to how much electrical energy it uses. A COP of 3.5 means it delivers 3.5 units of heat for every 1 unit of electricity consumed. Your facility manager, contractor, or supplier may be able to assist in estimating the annual energy consumptions of the current and proposed systems. Alternatively, the following formula can be considered to estimate the energy consumption: [Number of units x rated system power (kW) x hours of use per day x 365 days] *As renewables replace gas and coal in the grid or solar is added to the building, then additional emissions reductions will be achieved.

Sheet Electrification
B1: Energy Data Sheet Electrification
B3: Project Type Please select from the dropdown list. Where multiple upgrades are proposed, complete additional rows as required. | D3: Project Description & Brief Calculations For example, What is currently in place? Where is it located? What is newly proposed? (maximum 50 words) Please also provide a brief description of your calculations. | E3: Standard | H3: Proposed | J3: Measurable Outcome
E4: Estimated annual energy consumption | G4: Estimated annual energy emissions | H4: Estimated annual energy consumption | I4: Estimated annual energy emissions | J4: Estimated annual energy saving | K4: Estimated annual emission reduction - via Grid* | L4: Estimated annual emission reduction - via Renewables*
E5: MJ | F5: kWhe | G5: tCO2-e | H5: kWh | I5: tCO2-e | J5: kWhe | K5: tCO2-e | L5: tCO2-e
B6: Example | C6: Gas cooking appliance replacement
B7: Example | C7: Gas hot water system replacement | D7: Replace gas hot water system with an efficient electric heat pump hot water system, located in Calculation: New electric heat pump with a Coefficient of Performance (COP) of 2 obtained from manufacturers data sheets. Standard est. energy consumption is taken from gas bills / meter readings = 20,000MJ (or 5,556kWh) Proposed est. energy consumption = 5,556kWh / 2 (COP) = 2,778kWh (see note*) | E7: 20000 | F7: =E7*'HIDE Setup'!B26 -> 5555.6 | G7: =E7*'HIDE Setup'!B19 -> 1.1126 | H7: 2778 | I7: =H7*'HIDE Setup'!B20 -> 1.55568 | J7: =F7-H7 -> 2777.6 | K7: =G7-I7 -> -0.44308 | L7: =G7 -> 1.1126
B8: A | C8: Select | F8: =E8*'HIDE Setup'!B26 -> 0 | G8: =E8*'HIDE Setup'!B19 -> 0 | I8: =H8*'HIDE Setup'!B20 -> 0 | J8: =F8-H8 -> 0 | K8: =G8-I8 -> 0 | L8: =G8 -> 0
B9: =CHAR(CODE(B8)+1) -> B | C9: Select | F9: =E9*'HIDE Setup'!B26 -> 0 | G9: =E9*'HIDE Setup'!B19 -> 0 | I9: =H9*'HIDE Setup'!B20 -> 0 | J9: 0 | K9: 0 | L9: 0
B10: C | C10: Select | F10: =E10*'HIDE Setup'!B26 -> 0 | G10: =E10*'HIDE Setup'!B19 -> 0 | I10: =H10*'HIDE Setup'!B20 -> 0 | J10: 0 | K10: 0 | L10: 0
B11: Total | E11: =SUM(E8:E10) -> 0 | F11: =SUM(F8:F10) -> 0 | G11: 0 | H11: 0 | I11: 0 | J11: 0 | K11: 0 | L11: 0
B12: NOTE | C12: Your facility manager, contractor, or supplier may be able to assist in estimating the annual energy consumptions of the current and proposed systems. Alternatively, the following formula can be considered to estimate the energy consumption: [Number of units x rated system power (kW) x hours of use per day x 365 days] *Coefficient of Performance (COP) is how much heat energy a system delivers compared to how much electrical energy it uses. A COP of 2 means it delivers 2 units of heat for every 1 unit of electricity consumed. *Electrification may not always result in immediate energy/emission reductions, however, as renewables replace gas and coal in the grid or solar is added to the building, electrification will result in additional emission reductions.

Sheet Electric Vehicle
B1: Energy Data Sheet Electric Vehicle
B3: Project Type Please select from the dropdown list. Where multiple upgrades are proposed, complete additional rows as required. | D3: Project Description & Brief Calculations For example, What is currently in place? Where is it located? What is newly proposed? (maximum 50 words) Please also provide a brief description of your calculations. | E3: Standard | G3: Proposed | I3: Measurable Outcome
E4: Estimated annual petrol consumption | F4: Estimated annual petrol emission | G4: Estimated annual energy consumption | H4: Estimated annual energy emissions | I4: Estimated annual emission reduction - via Grid*
E5: L | F5: tCO2-e | G5: kWh | H5: tCO2-e | I5: tCO2-e
B6: Example | C6: Electrical vehicle charger | D6: Replacing 1x petrol vehicle with an electic vehicle and an on-site charger Calculation: An average vehicle *2023 Hyundai Kona driving 12,000 km/year. Standard est. energy consumption for an average petrol vehicle at 6.9 L/100 km × 12,000 km/year = 828L Proposed est. energy consumption for an average electric vehicle at 14.3kWh/100 km × 12,000 km/year = 1,716kWh | E6: 828 | F6: =E6*'HIDE Setup'!B22*'HIDE Setup'!B24 -> 1.886841432 | G6: 1716 | H6: =G6*'HIDE Setup'!B20 -> 0.96096 | I6: =F6-H6 -> 0.925881432
B7: A | C7: Select | F7: =E7*'HIDE Setup'!B22*'HIDE Setup'!B24 -> 0 | H7: =G7*'HIDE Setup'!B20 -> 0 | I7: =F7-H7 -> 0
B8: =CHAR(CODE(B7)+1) -> B | C8: Select | F8: =E8*'HIDE Setup'!B22*'HIDE Setup'!B24 -> 0 | H8: =G8*'HIDE Setup'!B20 -> 0 | I8: 0
B9: C | C9: Select | F9: =E9*'HIDE Setup'!B22*'HIDE Setup'!B24 -> 0 | H9: =G9*'HIDE Setup'!B20 -> 0 | I9: 0
B10: Total | E10: =SUM(E7:E9) -> 0 | F10: =SUM(F7:F9) -> 0 | G10: 0 | H10: 0 | I10: 0
C11: Are you installing electric vehicle charging in your building? Check out these helpful guides from the Australian Government | F11: CLICK HERE
C12: *Estimates on an ave. 2023 Hyundai Kona Petrol (6.9 L/100 km) & Electric (14.3kWh/100) driving 12,000 km/yr may be used. Alternatively, use vehcile specific data | F12: CLICK HERE
B13: NOTE | C13: Your facility manager, contractor, or supplier may be able to assist in estimating the annual energy consumptions of the current and proposed systems. *As renewables replace gas and coal in the grid or solar is added to the building, electrification of vehicles will result in additional emissions reductions.

Sheet Renewables
B1: Energy Data Sheet Renewables
B3: Project Type Please select from the dropdown list. Where multiple upgrades are proposed, complete additional rows as required. | D3: Project Description & Brief Calculations For example, what is the proposed system? What is the kW rating of the solar panels and inverters or the batteries? How is the system connected to the building, via an embedded network or to the common area only? (maximum 50 words) Please also provide a brief desciption of your calculations | E3: Proposed | H3: Measurable Outcome
E4: What area does the renewable energy system serve? | F4: Rated annual renewable energy generation | G4: Expected annual renewable energy usage | H4: Estimated annual renewable energy usage | I4: Estimated annual emission reduction
F5: kWh | G5: kWh | H5: kWh | I5: tCO2-e
B6: Example | C6: Solar PV | D6: Installation of 25kW of PV with 20kW inverter connected to common area power inc. lobbie, lift and gym. Calculation: *On average 1kW PV panel will generate 4.4kWh per day. Analysing the common area energy consumption pattern, it is estimated only 70% renewable energy will be used. Rated annual output = 4.4kWh x 20 kW x 365days = 32,120 kWh Expected annual usage = 32,120kWh x 0.7 = 22,484kWh | E6: Common area | F6: 32120 | G6: 22484 | H6: =G6 -> 22484 | I6: =H6*'HIDE Setup'!B20 -> 12.59104
B7: A | C7: Select | H7: =G7 -> 0 | I7: =H7*'HIDE Setup'!B20 -> 0 | L7: =IF(#REF!="Yes",H7,0) -> 
B8: =CHAR(CODE(B7)+1) -> B | C8: Select | H8: 0 | I8: =H8*'HIDE Setup'!B20 -> 0 | L8: =IF(#REF!="Yes",H8,0) -> 
B9: C | C9: Select | H9: 0 | I9: =H9*'HIDE Setup'!B20 -> 0 | L9: =IF(#REF!="Yes",H9,0) -> 
B10: D | C10: Select | H10: =IF(ISNUMBER(G10), G10, "") ->  | I10: =IFERROR(H10*'HIDE Setup'!$B$20, "") ->  | L10: =IF(#REF!="Yes",H10,0) -> 
B11: =CHAR(CODE(B10)+1) -> E | C11: Select | I11: =IFERROR(H11*'HIDE Setup'!$B$20, "") ->  | L11: =IF(#REF!="Yes",H11,0) -> 
B12: Total | F12: =IF(COUNT(F7:F11)=0, "0", IFERROR(SUM(IF(ISNUMBER(F7:F11), F7:F11)), "")) -> 0 | G12: =IF(COUNT(G7:G11)=0, "0", IFERROR(SUM(IF(ISNUMBER(G7:G11), G7:G11)), "")) -> 0 | H12: =IF(COUNT(H7:H11)=0, "0", IFERROR(SUM(IF(ISNUMBER(H7:H11), H7:H11)), "")) -> 0 | I12: =IF(COUNT(I7:I11)=0, "0", IFERROR(SUM(IF(ISNUMBER(I7:I11), I7:I11)), "")) -> 0 | L12: =SUM(L7:L11) -> 
B13: NOTE | C13: *On average 1kW PV panel will generate 4.4kWh per day https://www.energy.gov.au/solar/get-know-solar-technology/solar-panels#measuring-solar-power-1 Rated annual energy generation / output from the proposed system: If it is a PV system with or without battery, it's defined as the electricity expected to be generated by the system annually. Rated annual energy generation / output from the proposed system: If it is a battery system only, it's defined as the electricity expected to be discharged from the system annually. Expected annual renewable energy usage: Is the the amount of renewable energy that is expected to be used in building according to the demand profile.

Sheet HIDE Setup (hidden)
A1: Workbook Setup | F1: Preset text
A2: The (live) version is an unprotected workbook for City of Perth use only. | F2: Energy Efficiency | G2: Electrification | H2: Renewables | I2: Electric Vehicle | J2: Yes/No | K2: Renewables - Area
A3: Protected password is: CityOfPerthCund@ll | F3: Select | G3: Select | H3: Select | I3: Select | K3: Select
F4: Lighting upgrade | G4: Gas hot water system replacement | H4: Solar PV | I4: Electric vehicle charger | J4: Yes | K4: Common area
A5: Save a copy of the Protected (locked) workbook to upload onto the grants webpage | F5: Hot water system upgrade | G5: Gas space heating system replacement | H5: Solar PV with battery | J5: No | K5: Common area & resdiential units
A6: To Protect the Sheet | B6: To Protect the Workbook | F6: Pumps and motors upgrade | G6: Gas cooking appliance replacement | H6: Battery to an existing solar PV | K6: Residential units
A7: >Go to Review tab in the menu | B7: >Rightclick on the HIDE Setup tab and select hide | F7: Lifts upgrade | G7: Other | H7: Other
A8: >Select Protect Sheet | B8: >Ensure ONLY the Intro | Energy Ef. | Electrif. | Electric Ve. | Renew. sheets are shown) | F8: Air Conditioning upgrade
A9: >Add password | B9: >Go to Review tab in the menu | F9: Ventilation fans upgrade
A10: >Repeat for all sheets/tabs | B10: >Select Protect Workbook | F10: Building tuning
B11: >Add password | F11: Other
A15: Emissions Factors
A16: Emissions Factors to be updated every year according to Australian National Greenhouse Account Factors - WA SWIS | G16: Colour Palette
A18: Emmision Factors
A19: Gas | B19: 5.563e-05 | C19: tCO2-e/MJ
A20: Electricity | B20: 0.00056 | C20: tCO2-e/kWh
A21: Petrol | B21: 67.62 | C21: kgCO2-e/GJ
A22: Petrol | B22: =B21/1000000 -> 6.762e-05 | C22: kgCO2-e/MJ
A23: Calorific Factor
A24: Petrol MJ/Litre | B24: 33.7
A25: Conversion
A26: Gas MJ/kWhe | B26: 0.27778
A29: Australian National Greenhouse Accounts Factors
A30: https://www.dcceew.gov.au/climate-change/publications/national-greenhouse-accounts-factors
A31: At time of grant program launch 20-07-26, National Greenhouse Account Factors 2025 is available and used as below.

Sheet Apartment Buildings (hidden)
D3: NSW Government 4 Parramatta Square 12 Darcy Street Parramatta, NSW 2150 | F3: T (02) 9995 5000 E nabers@environment.nsw.gov.au W nabers.gov.au
B4: NABERS Energy for Apartment Buildings Prediction Tool
B5: Version: | C5: 2 | E5: Date: | F5: 2023-07-04
B7: The emissions factors used to calculate NABERS Energy ratings will be updated every 5 years, to reflect that the electricity grid is decarbonising. This tool helps you understand how ratings are likely to change over time with the following results: ~ "Current" Result: This is the estimated current star rating result of your NABERS Energy rating with Rating Period start date 1 July 2020 onwards. The emissions factors used to calculate these ratings are the updated 2020 National Greenhouse Accounts. ~ "Former (Rating Period Prior to 1 July 2020)" Result: This is the estimated star rating result of your NABERS Energy rating with Rating Period start date prior to 1 July 2020, which uses the old rating calculation. ~ "Predicted 2025" and "Predicted 2030" Results: These are predictions of the rating results based on the forecasted electricity grid emission factors. ~~ Scenario 1 is based on the predictions provided by the Australian Government1. ~~ Scenario 2 forecasts assume that by 2030 the electricity grid will have decarbonised twice as fast as in Scenario 1. 1Source: Appendix C, Australia's emissions projections. https://www.industry.gov.au/publications/australias-emissions-projections-2020
B10: ENTER THE APARTMENT BUILDING INFORMATION
B12: Building Postcode | H12: 6000 | J12: =IF(AND(H12="",H25=""),"",IF(ISNA(#REF!),"ERROR: Please enter a valid postcode","")) -> 
B13: Total number of apartments in the scheme | H13: =#REF! -> 
B14: Number of centrally air-conditioned apartments | H14: =IF(#REF!="Yes",#REF!,0) -> 
B15: Number of condenser water serviced apartments
B16: Number of no central air-conditioning service apartment | H16: =H13-H14 ->  | J16: =IF(H16<0, "Number of serviced apartments is greater than number of total apartment. Please review.", "") -> 
B17: Number of lift serviced apartments | H17: =IF(#REF!="Yes",#REF!,0) ->  | J17: =IF(H17>H13, "Number of serviced apartments is greater than number of total apartment. Please review.", "") -> 
B18: Number of mechanically ventilated car spaces | H18: =#REF! -> 
B19: Number of naturally ventilated car spaces | H19: =#REF! -> 
B20: Does the scheme have a swimming pool larger than 25 sqm | H20: =#REF! ->  | J20: =IF(AND(H20="Heated Pool", H21<1), "The pool must be heated for at least 1 month during the rating period, otherwise it is a non-heated pool", "") -> 
B21: =IF(H20<>"No pool", "How many months of the rating period was the pool available?", "") ->  | H21: 12
B22: Does the scheme have a gym? | H22: =#REF! -> 
B23: =IF(H22="Yes", "How many months of the rating period was the gym available?", "") ->  | H23: 12
B25: Energy Consumption: | F25: Electricity (kWh) | H25: =#REF! -> 
F26: Gas (MJ) | H26: =#REF! -> 
F27: Diesel (L) | H27: 0
F28: Total Energy Consumption (kWh) | H28: =H25+H26/3.6+H27*38.6/3.6 -> 
B29: All results are an indication only and cannot be promoted or published.
B31: RESULTS
C34: Benchmarking factor at selected rating | F34: =IF(#REF!<>"",TRUNC(#REF!),"") -> 
B38: Current
E39: =IF(OR(H12="",H13="",H25=""),"",IFERROR(M120,"NA")) ->  | H39: STARS
C40: STAR RATING
E41: =IF(OR($E$39="NA",$E$39="",E39="ERROR: Please enter valid hours"), "ERROR: Please provide inputs","") -> 
E42: =IF((M119>6),6,(IFERROR(M119,0))) ->  | H42: =E42 -> 
E45: Scenario 1 | F45: Scenario 2
B46: Predicted 2025
E47: =IF(OR(H12="",H13="",H25=""),"", IFERROR(S120,"NA")) ->  | F47: =IF(OR(H12="",H13="",H25=""),"", IFERROR(T120,"NA")) ->  | H47: STARS
C48: STAR RATING
E49: =IF(OR($E$47="NA",$E$47="",E47="ERROR: Please enter valid hours"), "ERROR: Please provide inputs","") -> 
E50: =IF((S119>6),6,(IFERROR(S119,0))) ->  | F50: =IF((T119>6),6,(IFERROR(T119,0))) -> 
B53: Predicted 2030
E54: =IF(OR(H12="",H13="",H25=""),"", IFERROR(Y120,"NA")) ->  | F54: =IF(OR(H12="",H13="",H25=""),"", IFERROR(Z120,"NA")) ->  | H54: STARS
C55: STAR RATING
E56: =IF(OR($E$54="NA",$E$54="",E54="ERROR: Please enter valid hours"), "ERROR: Please provide inputs","") -> 
E57: =IF((Y119>6),6,(IFERROR(Y119,0))) ->  | F57: =IF((Z119>6),6,(IFERROR(Z119,0))) -> 
B59: Former (Rating Period Prior to 1 July 2020)
E60: =IF(OR(H12="",H13="",H25=""),"", IFERROR(F120,"NA")) ->  | H60: STARS
C61: STAR RATING
E62: =IF(OR($E$60="NA",$E$60="",E60="ERROR: Please enter valid hours"), "ERROR: Please provide inputs","") -> 
E63: =IF((F119>6),6,(IFERROR(F119,0))) ->  | H63: =E63 ->  | AA63: Predicted 2030 | AB63: =$F$65 -> 0 | AC63: 1 | AD63: 2 | AE63: 3 | AF63: 4 | AG63: 5 | AH63: 6
B65: VISUALISATION OF RESULTS
B88: *Hide below the line*
B89: Calculations
B90: Universal Calcs
B91: State | F91: =VLOOKUP($H$12,'Climate by postcode'!$A$3:$E$3730,5,FALSE) -> WA
B92: Central AC Coefficient | F92: 3040.493772
B93: Condenser Water Coefficient | F93: 2669.20407
B94: Lift Coefficient | F94: 714.8345906
B95: Pool Coefficient | F95: =IF(H20="No pool",0,IF(H20="Non-heated Pool",662.303,1040.58055956421)) -> 
B96: Gym Coefficient | F96: =IF(H22="Yes", 470.071920647561, 0) -> 
B97: MV Carpark Coefficient | F97: 652.6562947
B98: NV Carpark Coefficient | F98: =F97*0.245251218239256 -> 160.0647514
B100: Prior to 1 July 2021 | I100: Rating at July 2021 | O100: Rating at July 2025 | S100: Scenario 1 | T100: Scenario 2 | U100: Rating at July 2030 | Y100: Scenario 1 | Z100: Scenario 2
B101: SGEelec 2018 | F101: =VLOOKUP($F$91,SGEx!$A$7:$E$14,2,FALSE) -> 0.95 | I101: SGEelec 2020 | M101: =VLOOKUP($F$91,SGEx!$A$19:$E$26,2,FALSE) -> 0.9 | O101: SGEelec 2025 | S101: =VLOOKUP($F$91,SGEx!$A$31:$E$38,2,FALSE) -> 0.62 | T101: =VLOOKUP($F$91,SGEx!$G$31:$K$38,2,FALSE) -> 0.583 | U101: SGEelec 2030 | Y101: =VLOOKUP($F$91,SGEx!$A$43:$E$50,2,FALSE) -> 0.53 | Z101: =VLOOKUP($F$91,SGEx!$G$43:$K$50,2,FALSE) -> 0.265
B102: SGEgas 2018 | F102: =VLOOKUP($F$91,SGEx!$A$7:$E$14,3,FALSE) -> 0.06388888889 | I102: SGEgas 2020 | M102: =VLOOKUP($F$91,SGEx!$A$19:$E$26,3,FALSE) -> 0.06463 | O102: SGEgas 2025 | S102: =VLOOKUP($F$91,SGEx!$A$31:$E$38,3,FALSE) -> 0.06463 | T102: =VLOOKUP($F$91,SGEx!$G$31:$K$38,3,FALSE) -> 0.06463 | U102: SGEgas 2030 | Y102: =VLOOKUP($F$91,SGEx!$A$43:$E$50,3,FALSE) -> 0.06463 | Z102: =VLOOKUP($F$91,SGEx!$G$43:$K$50,3,FALSE) -> 0.06463
B103: SGEdiese 2018 | F103: =VLOOKUP($F$91,SGEx!$A$7:$E$14,4,FALSE) -> 2.84868 | I103: SGEdiese 2020 | M103: =VLOOKUP($F$91,SGEx!$A$19:$E$26,4,FALSE) -> 2.84868 | O103: SGEdiese 2025 | S103: =VLOOKUP($F$91,SGEx!$A$31:$E$38,4,FALSE) -> 2.84868 | T103: =VLOOKUP($F$91,SGEx!$G$31:$K$38,4,FALSE) -> 2.84868 | U103: SGEdiese 2030 | Y103: =VLOOKUP($F$91,SGEx!$A$43:$E$50,4,FALSE) -> 2.84868 | Z103: =VLOOKUP($F$91,SGEx!$G$43:$K$50,4,FALSE) -> 2.84868
B104: SSC (A) | F104: N/A | I104: SSC (A) | M104: =VLOOKUP($F$91,'SSC (A)'!$A$6:$F$13,2,FALSE) -> 0.95 | O104: SSC (A) | S104: =VLOOKUP($F$91,'SSC (A)'!$A$6:$F$13,3,FALSE) -> 0.669 | T104: =VLOOKUP($F$91,'SSC (A)'!$A$6:$F$13,5,FALSE) -> 0.632 | U104: SSC (A) | Y104: =VLOOKUP($F$91,'SSC (A)'!$A$6:$F$13,4,FALSE) -> 0.579 | Z104: =VLOOKUP($F$91,'SSC (A)'!$A$6:$F$13,6,FALSE) -> 0.313
B105: e: Actual emission per apartment | F105: =(F101*$H$25+F102*$H$26+F103*$H$27)/$H$13 ->  | I105: e: Actual emission per apartment | M105: =(M101*$H$25+M102*$H$26+M103*$H$27)/$H$13 ->  | O105: e: Actual emission per apartment | S105: =(S101*$H$25+S102*$H$26+S103*$H$27)/$H$13 ->  | T105: =(T101*$H$25+T102*$H$26+T103*$H$27)/$H$13 ->  | U105: e: Actual emission per apartment | Y105: =(Y101*$H$25+Y102*$H$26+Y103*$H$27)/$H$13 ->  | Z105: =(Z101*$H$25+Z102*$H$26+Z103*$H$27)/$H$13 -> 
B106: Intercept | F106: 39.32670033 | I106: Intercept | M106: 39.32670033 | O106: Intercept | S106: 39.32670033 | T106: 39.32670033 | U106: Intercept | Y106: 39.32670033 | Z106: 39.32670033
B107: Predicted Central AC Emissions | F107: =$H$14*$F$92/$H$13 ->  | I107: Predicted Central AC Emissions | M107: =$H$14*$F$92/$H$13 ->  | O107: Predicted Central AC Emissions | S107: =$H$14*$F$92/$H$13 ->  | T107: =$H$14*$F$92/$H$13 ->  | U107: Predicted Central AC Emissions | Y107: =$H$14*$F$92/$H$13 ->  | Z107: =$H$14*$F$92/$H$13 -> 
B108: Predicted Condenser Water Emissions | F108: =$H$15*$F$93/$H$13 ->  | I108: Predicted Condenser Water Emissions | M108: =$H$15*$F$93/$H$13 ->  | O108: Predicted Condenser Water Emissions | S108: =$H$15*$F$93/$H$13 ->  | T108: =$H$15*$F$93/$H$13 ->  | U108: Predicted Condenser Water Emissions | Y108: =$H$15*$F$93/$H$13 ->  | Z108: =$H$15*$F$93/$H$13 -> 
B109: Predicted Non Central Services Emissions | F109: =$H$16*0/$H$13 ->  | I109: Predicted Non Central Services Emissions | M109: =$H$16*0/$H$13 ->  | O109: Predicted Non Central Services Emissions | S109: =$H$16*0/$H$13 ->  | T109: =$H$16*0/$H$13 ->  | U109: Predicted Non Central Services Emissions | Y109: =$H$16*0/$H$13 ->  | Z109: =$H$16*0/$H$13 -> 
B110: Predicted Lift Emissions | F110: =$H$17*$F$94/$H$13 ->  | I110: Predicted Lift Emissions | M110: =$H$17*$F$94/$H$13 ->  | O110: Predicted Lift Emissions | S110: =$H$17*$F$94/$H$13 ->  | T110: =$H$17*$F$94/$H$13 ->  | U110: Predicted Lift Emissions | Y110: =$H$17*$F$94/$H$13 ->  | Z110: =$H$17*$F$94/$H$13 -> 
B111: Predicted Pool Emissions | F111: =$F$95*($H$21/12) ->  | I111: Predicted Pool Emissions | M111: =$F$95*($H$21/12) ->  | O111: Predicted Pool Emissions | S111: =$F$95*($H$21/12) ->  | T111: =$F$95*($H$21/12) ->  | U111: Predicted Pool Emissions | Y111: =$F$95*($H$21/12) ->  | Z111: =$F$95*($H$21/12) -> 
B112: Predicted Gym Emissions | F112: =$F$96*($H$23/12) ->  | I112: Predicted Gym Emissions | M112: =$F$96*($H$23/12) ->  | O112: Predicted Gym Emissions | S112: =$F$96*($H$23/12) ->  | T112: =$F$96*($H$23/12) ->  | U112: Predicted Gym Emissions | Y112: =$F$96*($H$23/12) ->  | Z112: =$F$96*($H$23/12) -> 
B113: Predicted Car Park Emissions | F113: =($H$18*$F$97+$H$19*$F$98)/$H$13 ->  | I113: Predicted Car Park Emissions | M113: =($H$18*$F$97+$H$19*$F$98)/$H$13 ->  | O113: Predicted Car Park Emissions | S113: =($H$18*$F$97+$H$19*$F$98)/$H$13 ->  | T113: =($H$18*$F$97+$H$19*$F$98)/$H$13 ->  | U113: Predicted Car Park Emissions | Y113: =($H$18*$F$97+$H$19*$F$98)/$H$13 ->  | Z113: =($H$18*$F$97+$H$19*$F$98)/$H$13 -> 
B114: er: Predicted emissions per apartment | F114: =F106+F107+F108+F109+F110+F111+F112+F113 ->  | I114: er: Predicted emissions per apartment | M114: =(M106+M107+M108+M109+M110+M111+M112+M113)*M104 ->  | O114: er: Predicted emissions per apartment | S114: =(S106+S107+S108+S109+S110+S111+S112+S113)*S104 ->  | T114: =(T106+T107+T108+T109+T110+T111+T112+T113)*T104 ->  | U114: er: Predicted emissions per apartment | Y114: =(Y106+Y107+Y108+Y109+Y110+Y111+Y112+Y113)*Y104 ->  | Z114: =(Z106+Z107+Z108+Z109+Z110+Z111+Z112+Z113)*Z104 -> 
B115: BF | F115: =(F105/F114)*100 ->  | I115: BF | M115: =(M105/M114)*100 ->  | O115: BF | S115: =(S105/S114)*100 ->  | T115: =(T105/T114)*100 ->  | U115: BF | Y115: =(Y105/Y114)*100 ->  | Z115: =(Z105/Z114)*100 -> 
B116: Final Energy Star without GP | F116: =VLOOKUP(F115, BenchmarkFactors!$A$2:$C$14,3,TRUE) ->  | I116: Final Energy Star without GP | M116: =VLOOKUP(M115, BenchmarkFactors!$A$2:$C$14,3,TRUE) ->  | O116: Final Energy Star without GP | S116: =VLOOKUP(S115, BenchmarkFactors!$A$2:$C$14,3,TRUE) ->  | T116: =VLOOKUP(T115, BenchmarkFactors!$A$2:$C$14,3,TRUE) ->  | U116: Final Energy Star without GP | Y116: =VLOOKUP(Y115, BenchmarkFactors!$A$2:$C$14,3,TRUE) ->  | Z116: =VLOOKUP(Z115, BenchmarkFactors!$A$2:$C$14,3,TRUE) -> 
B118: Results | I118: Results | O118: Results | U118: Results
B119: Energy rating two decimal (without the distinction between below and above 5 stars) | F119: =VLOOKUP(IF(F115<BenchmarkFactors!$E$4,BenchmarkFactors!$E$4,F115),BenchmarkFactors!$E$4:$F$604,2,TRUE) ->  | I119: Energy rating two decimal (without the distinction between below and above 5 stars) | M119: =VLOOKUP(IF(M115<BenchmarkFactors!$E$4,BenchmarkFactors!$E$4,M115),BenchmarkFactors!$E$4:$F$604,2,TRUE) ->  | O119: Energy rating two decimal (without the distinction between below and above 5 stars) | S119: =VLOOKUP(IF(S115<BenchmarkFactors!$E$4,BenchmarkFactors!$E$4,S115),BenchmarkFactors!$E$4:$F$604,2,TRUE) ->  | T119: =VLOOKUP(IF(T115<BenchmarkFactors!$E$4,BenchmarkFactors!$E$4,T115),BenchmarkFactors!$E$4:$F$604,2,TRUE) ->  | U119: Energy rating two decimal (without the distinction between below and above 5 stars) | Y119: =VLOOKUP(IF(Y115<BenchmarkFactors!$E$4,BenchmarkFactors!$E$4,Y115),BenchmarkFactors!$E$4:$F$604,2,TRUE) ->  | Z119: =VLOOKUP(IF(Z115<BenchmarkFactors!$E$4,BenchmarkFactors!$E$4,Z115),BenchmarkFactors!$E$4:$F$604,2,TRUE) -> 
B120: Energy rating (without the distinction between below and above 5 stars) | F120: =IF((ROUNDDOWN(F119*2,0)/2)>6,6,IF((ROUNDDOWN(F119*2,0)/2)<1,0,(ROUNDDOWN(F119*2,0)/2))) ->  | I120: Energy rating (without the distinction between below and above 5 stars) | M120: =IF((ROUNDDOWN(M119*2,0)/2)>6,6,IF((ROUNDDOWN(M119*2,0)/2)<1,0,(ROUNDDOWN(M119*2,0)/2))) ->  | O120: Energy rating (without the distinction between below and above 5 stars) | S120: =IF((ROUNDDOWN(S119*2,0)/2)>6,6,IF((ROUNDDOWN(S119*2,0)/2)<1,0,(ROUNDDOWN(S119*2,0)/2))) ->  | T120: =IF((ROUNDDOWN(T119*2,0)/2)>6,6,IF((ROUNDDOWN(T119*2,0)/2)<1,0,(ROUNDDOWN(T119*2,0)/2))) ->  | U120: Energy rating (without the distinction between below and above 5 stars) | Y120: =IF((ROUNDDOWN(Y119*2,0)/2)>6,6,IF((ROUNDDOWN(Y119*2,0)/2)<1,0,(ROUNDDOWN(Y119*2,0)/2))) ->  | Z120: =IF((ROUNDDOWN(Z119*2,0)/2)>6,6,IF((ROUNDDOWN(Z119*2,0)/2)<1,0,(ROUNDDOWN(Z119*2,0)/2))) -> 

Sheet Apartment Buildings (2) (hidden)
D3: NSW Government 4 Parramatta Square 12 Darcy Street Parramatta, NSW 2150 | F3: T (02) 9995 5000 E nabers@environment.nsw.gov.au W nabers.gov.au
B4: NABERS Energy for Apartment Buildings Prediction Tool
B5: Version: | C5: 2 | E5: Date: | F5: 2023-07-04
B7: The emissions factors used to calculate NABERS Energy ratings will be updated every 5 years, to reflect that the electricity grid is decarbonising. This tool helps you understand how ratings are likely to change over time with the following results: ~ "Current" Result: This is the estimated current star rating result of your NABERS Energy rating with Rating Period start date 1 July 2020 onwards. The emissions factors used to calculate these ratings are the updated 2020 National Greenhouse Accounts. ~ "Former (Rating Period Prior to 1 July 2020)" Result: This is the estimated star rating result of your NABERS Energy rating with Rating Period start date prior to 1 July 2020, which uses the old rating calculation. ~ "Predicted 2025" and "Predicted 2030" Results: These are predictions of the rating results based on the forecasted electricity grid emission factors. ~~ Scenario 1 is based on the predictions provided by the Australian Government1. ~~ Scenario 2 forecasts assume that by 2030 the electricity grid will have decarbonised twice as fast as in Scenario 1. 1Source: Appendix C, Australia's emissions projections. https://www.industry.gov.au/publications/australias-emissions-projections-2020
B10: ENTER THE APARTMENT BUILDING INFORMATION
B12: Building Postcode | H12: 6000 | J12: =IF(AND(H12="",H25=""),"",IF(ISNA(#REF!),"ERROR: Please enter a valid postcode","")) -> 
B13: Total number of apartments in the scheme | H13: =#REF! -> 
B14: Number of centrally air-conditioned apartments | H14: =IF(#REF!="Yes",#REF!,0) -> 
B15: Number of condenser water serviced apartments
B16: Number of no central air-conditioning service apartment | H16: =H13-H14-H15 ->  | J16: =IF(H16<0, "Number of serviced apartments is greater than number of total apartment. Please review.", "") -> 
B17: Number of lift serviced apartments | H17: =IF(#REF!="Yes",#REF!,0) ->  | J17: =IF(H17>H13, "Number of serviced apartments is greater than number of total apartment. Please review.", "") -> 
B18: Number of mechanically ventilated car spaces | H18: =#REF! -> 
B19: Number of naturally ventilated car spaces | H19: =#REF! -> 
B20: Does the scheme have a swimming pool larger than 25 sqm | H20: =#REF! ->  | J20: =IF(AND(H20="Heated Pool", H21<1), "The pool must be heated for at least 1 month during the rating period, otherwise it is a non-heated pool", "") -> 
B21: =IF(H20<>"No pool", "How many months of the rating period was the pool available?", "") ->  | H21: 12
B22: Does the scheme have a gym? | H22: =#REF! -> 
B23: =IF(H22="Yes", "How many months of the rating period was the gym available?", "") ->  | H23: 12
B25: Energy Consumption: | F25: Electricity (kWh) | H25: =#REF!-'Energy Efficiency'!G10+#REF!-Renewables!L12 -> 
F26: Gas (MJ) | H26: =#REF!-#REF! -> 
F27: Diesel (L) | H27: 0
F28: Total Energy Consumption (kWh) | H28: =H25+H26/3.6+H27*38.6/3.6 -> 
B29: All results are an indication only and cannot be promoted or published.
B31: RESULTS
C34: Benchmarking factor at selected rating | F34: =IF(#REF!<>"",TRUNC(#REF!),"") -> 
B38: Current
E39: =IF(OR(H12="",H13="",H25=""),"",IFERROR(M120,"NA")) ->  | H39: STARS
C40: STAR RATING
E41: =IF(OR($E$39="NA",$E$39="",E39="ERROR: Please enter valid hours"), "ERROR: Please provide inputs","") -> 
E42: =IF((M119>6),6,(IFERROR(M119,0))) ->  | H42: =E42 -> 
E45: Scenario 1 | F45: Scenario 2
B46: Predicted 2025
E47: =IF(OR(H12="",H13="",H25=""),"", IFERROR(S120,"NA")) ->  | F47: =IF(OR(H12="",H13="",H25=""),"", IFERROR(T120,"NA")) ->  | H47: STARS
C48: STAR RATING
E49: =IF(OR($E$47="NA",$E$47="",E47="ERROR: Please enter valid hours"), "ERROR: Please provide inputs","") -> 
E50: =IF((S119>6),6,(IFERROR(S119,0))) ->  | F50: =IF((T119>6),6,(IFERROR(T119,0))) -> 
B53: Predicted 2030
E54: =IF(OR(H12="",H13="",H25=""),"", IFERROR(Y120,"NA")) ->  | F54: =IF(OR(H12="",H13="",H25=""),"", IFERROR(Z120,"NA")) ->  | H54: STARS
C55: STAR RATING
E56: =IF(OR($E$54="NA",$E$54="",E54="ERROR: Please enter valid hours"), "ERROR: Please provide inputs","") -> 
E57: =IF((Y119>6),6,(IFERROR(Y119,0))) ->  | F57: =IF((Z119>6),6,(IFERROR(Z119,0))) -> 
B59: Former (Rating Period Prior to 1 July 2020)
E60: =IF(OR(H12="",H13="",H25=""),"", IFERROR(F120,"NA")) ->  | H60: STARS
C61: STAR RATING
E62: =IF(OR($E$60="NA",$E$60="",E60="ERROR: Please enter valid hours"), "ERROR: Please provide inputs","") -> 
E63: =IF((F119>6),6,(IFERROR(F119,0))) ->  | H63: =E63 ->  | AA63: Predicted 2030 | AB63: =$F$65 -> 0 | AC63: 1 | AD63: 2 | AE63: 3 | AF63: 4 | AG63: 5 | AH63: 6
B65: VISUALISATION OF RESULTS
B88: *Hide below the line*
B89: Calculations
B90: Universal Calcs
B91: State | F91: =VLOOKUP($H$12,'Climate by postcode'!$A$3:$E$3730,5,FALSE) -> WA
B92: Central AC Coefficient | F92: 3040.493772
B93: Condenser Water Coefficient | F93: 2669.20407
B94: Lift Coefficient | F94: 714.8345906
B95: Pool Coefficient | F95: =IF(H20="No pool",0,IF(H20="Non-heated Pool",662.303,1040.58055956421)) -> 
B96: Gym Coefficient | F96: =IF(H22="Yes", 470.071920647561, 0) -> 
B97: MV Carpark Coefficient | F97: 652.6562947
B98: NV Carpark Coefficient | F98: =F97*0.245251218239256 -> 160.0647514
B100: Prior to 1 July 2021 | I100: Rating at July 2021 | O100: Rating at July 2025 | S100: Scenario 1 | T100: Scenario 2 | U100: Rating at July 2030 | Y100: Scenario 1 | Z100: Scenario 2
B101: SGEelec 2018 | F101: =VLOOKUP($F$91,SGEx!$A$7:$E$14,2,FALSE) -> 0.95 | I101: SGEelec 2020 | M101: =VLOOKUP($F$91,SGEx!$A$19:$E$26,2,FALSE) -> 0.9 | O101: SGEelec 2025 | S101: =VLOOKUP($F$91,SGEx!$A$31:$E$38,2,FALSE) -> 0.62 | T101: =VLOOKUP($F$91,SGEx!$G$31:$K$38,2,FALSE) -> 0.583 | U101: SGEelec 2030 | Y101: =VLOOKUP($F$91,SGEx!$A$43:$E$50,2,FALSE) -> 0.53 | Z101: =VLOOKUP($F$91,SGEx!$G$43:$K$50,2,FALSE) -> 0.265
B102: SGEgas 2018 | F102: =VLOOKUP($F$91,SGEx!$A$7:$E$14,3,FALSE) -> 0.06388888889 | I102: SGEgas 2020 | M102: =VLOOKUP($F$91,SGEx!$A$19:$E$26,3,FALSE) -> 0.06463 | O102: SGEgas 2025 | S102: =VLOOKUP($F$91,SGEx!$A$31:$E$38,3,FALSE) -> 0.06463 | T102: =VLOOKUP($F$91,SGEx!$G$31:$K$38,3,FALSE) -> 0.06463 | U102: SGEgas 2030 | Y102: =VLOOKUP($F$91,SGEx!$A$43:$E$50,3,FALSE) -> 0.06463 | Z102: =VLOOKUP($F$91,SGEx!$G$43:$K$50,3,FALSE) -> 0.06463
B103: SGEdiese 2018 | F103: =VLOOKUP($F$91,SGEx!$A$7:$E$14,4,FALSE) -> 2.84868 | I103: SGEdiese 2020 | M103: =VLOOKUP($F$91,SGEx!$A$19:$E$26,4,FALSE) -> 2.84868 | O103: SGEdiese 2025 | S103: =VLOOKUP($F$91,SGEx!$A$31:$E$38,4,FALSE) -> 2.84868 | T103: =VLOOKUP($F$91,SGEx!$G$31:$K$38,4,FALSE) -> 2.84868 | U103: SGEdiese 2030 | Y103: =VLOOKUP($F$91,SGEx!$A$43:$E$50,4,FALSE) -> 2.84868 | Z103: =VLOOKUP($F$91,SGEx!$G$43:$K$50,4,FALSE) -> 2.84868
B104: SSC (A) | F104: N/A | I104: SSC (A) | M104: =VLOOKUP($F$91,'SSC (A)'!$A$6:$F$13,2,FALSE) -> 0.95 | O104: SSC (A) | S104: =VLOOKUP($F$91,'SSC (A)'!$A$6:$F$13,3,FALSE) -> 0.669 | T104: =VLOOKUP($F$91,'SSC (A)'!$A$6:$F$13,5,FALSE) -> 0.632 | U104: SSC (A) | Y104: =VLOOKUP($F$91,'SSC (A)'!$A$6:$F$13,4,FALSE) -> 0.579 | Z104: =VLOOKUP($F$91,'SSC (A)'!$A$6:$F$13,6,FALSE) -> 0.313
B105: e: Actual emission per apartment | F105: =(F101*$H$25+F102*$H$26+F103*$H$27)/$H$13 ->  | I105: e: Actual emission per apartment | M105: =(M101*$H$25+M102*$H$26+M103*$H$27)/$H$13 ->  | O105: e: Actual emission per apartment | S105: =(S101*$H$25+S102*$H$26+S103*$H$27)/$H$13 ->  | T105: =(T101*$H$25+T102*$H$26+T103*$H$27)/$H$13 ->  | U105: e: Actual emission per apartment | Y105: =(Y101*$H$25+Y102*$H$26+Y103*$H$27)/$H$13 ->  | Z105: =(Z101*$H$25+Z102*$H$26+Z103*$H$27)/$H$13 -> 
B106: Intercept | F106: 39.32670033 | I106: Intercept | M106: 39.32670033 | O106: Intercept | S106: 39.32670033 | T106: 39.32670033 | U106: Intercept | Y106: 39.32670033 | Z106: 39.32670033
B107: Predicted Central AC Emissions | F107: =$H$14*$F$92/$H$13 ->  | I107: Predicted Central AC Emissions | M107: =$H$14*$F$92/$H$13 ->  | O107: Predicted Central AC Emissions | S107: =$H$14*$F$92/$H$13 ->  | T107: =$H$14*$F$92/$H$13 ->  | U107: Predicted Central AC Emissions | Y107: =$H$14*$F$92/$H$13 ->  | Z107: =$H$14*$F$92/$H$13 -> 
B108: Predicted Condenser Water Emissions | F108: =$H$15*$F$93/$H$13 ->  | I108: Predicted Condenser Water Emissions | M108: =$H$15*$F$93/$H$13 ->  | O108: Predicted Condenser Water Emissions | S108: =$H$15*$F$93/$H$13 ->  | T108: =$H$15*$F$93/$H$13 ->  | U108: Predicted Condenser Water Emissions | Y108: =$H$15*$F$93/$H$13 ->  | Z108: =$H$15*$F$93/$H$13 -> 
B109: Predicted Non Central Services Emissions | F109: =$H$16*0/$H$13 ->  | I109: Predicted Non Central Services Emissions | M109: =$H$16*0/$H$13 ->  | O109: Predicted Non Central Services Emissions | S109: =$H$16*0/$H$13 ->  | T109: =$H$16*0/$H$13 ->  | U109: Predicted Non Central Services Emissions | Y109: =$H$16*0/$H$13 ->  | Z109: =$H$16*0/$H$13 -> 
B110: Predicted Lift Emissions | F110: =$H$17*$F$94/$H$13 ->  | I110: Predicted Lift Emissions | M110: =$H$17*$F$94/$H$13 ->  | O110: Predicted Lift Emissions | S110: =$H$17*$F$94/$H$13 ->  | T110: =$H$17*$F$94/$H$13 ->  | U110: Predicted Lift Emissions | Y110: =$H$17*$F$94/$H$13 ->  | Z110: =$H$17*$F$94/$H$13 -> 
B111: Predicted Pool Emissions | F111: =$F$95*($H$21/12) ->  | I111: Predicted Pool Emissions | M111: =$F$95*($H$21/12) ->  | O111: Predicted Pool Emissions | S111: =$F$95*($H$21/12) ->  | T111: =$F$95*($H$21/12) ->  | U111: Predicted Pool Emissions | Y111: =$F$95*($H$21/12) ->  | Z111: =$F$95*($H$21/12) -> 
B112: Predicted Gym Emissions | F112: =$F$96*($H$23/12) ->  | I112: Predicted Gym Emissions | M112: =$F$96*($H$23/12) ->  | O112: Predicted Gym Emissions | S112: =$F$96*($H$23/12) ->  | T112: =$F$96*($H$23/12) ->  | U112: Predicted Gym Emissions | Y112: =$F$96*($H$23/12) ->  | Z112: =$F$96*($H$23/12) -> 
B113: Predicted Car Park Emissions | F113: =($H$18*$F$97+$H$19*$F$98)/$H$13 ->  | I113: Predicted Car Park Emissions | M113: =($H$18*$F$97+$H$19*$F$98)/$H$13 ->  | O113: Predicted Car Park Emissions | S113: =($H$18*$F$97+$H$19*$F$98)/$H$13 ->  | T113: =($H$18*$F$97+$H$19*$F$98)/$H$13 ->  | U113: Predicted Car Park Emissions | Y113: =($H$18*$F$97+$H$19*$F$98)/$H$13 ->  | Z113: =($H$18*$F$97+$H$19*$F$98)/$H$13 -> 
B114: er: Predicted emissions per apartment | F114: =F106+F107+F108+F109+F110+F111+F112+F113 ->  | I114: er: Predicted emissions per apartment | M114: =(M106+M107+M108+M109+M110+M111+M112+M113)*M104 ->  | O114: er: Predicted emissions per apartment | S114: =(S106+S107+S108+S109+S110+S111+S112+S113)*S104 ->  | T114: =(T106+T107+T108+T109+T110+T111+T112+T113)*T104 ->  | U114: er: Predicted emissions per apartment | Y114: =(Y106+Y107+Y108+Y109+Y110+Y111+Y112+Y113)*Y104 ->  | Z114: =(Z106+Z107+Z108+Z109+Z110+Z111+Z112+Z113)*Z104 -> 
B115: BF | F115: =(F105/F114)*100 ->  | I115: BF | M115: =(M105/M114)*100 ->  | O115: BF | S115: =(S105/S114)*100 ->  | T115: =(T105/T114)*100 ->  | U115: BF | Y115: =(Y105/Y114)*100 ->  | Z115: =(Z105/Z114)*100 -> 
B116: Final Energy Star without GP | F116: =VLOOKUP(F115, BenchmarkFactors!$A$2:$C$14,3,TRUE) ->  | I116: Final Energy Star without GP | M116: =VLOOKUP(M115, BenchmarkFactors!$A$2:$C$14,3,TRUE) ->  | O116: Final Energy Star without GP | S116: =VLOOKUP(S115, BenchmarkFactors!$A$2:$C$14,3,TRUE) ->  | T116: =VLOOKUP(T115, BenchmarkFactors!$A$2:$C$14,3,TRUE) ->  | U116: Final Energy Star without GP | Y116: =VLOOKUP(Y115, BenchmarkFactors!$A$2:$C$14,3,TRUE) ->  | Z116: =VLOOKUP(Z115, BenchmarkFactors!$A$2:$C$14,3,TRUE) -> 
B118: Results | I118: Results | O118: Results | U118: Results
B119: Energy rating two decimal (without the distinction between below and above 5 stars) | F119: =VLOOKUP(IF(F115<BenchmarkFactors!$E$4,BenchmarkFactors!$E$4,F115),BenchmarkFactors!$E$4:$F$604,2,TRUE) ->  | I119: Energy rating two decimal (without the distinction between below and above 5 stars) | M119: =VLOOKUP(IF(M115<BenchmarkFactors!$E$4,BenchmarkFactors!$E$4,M115),BenchmarkFactors!$E$4:$F$604,2,TRUE) ->  | O119: Energy rating two decimal (without the distinction between below and above 5 stars) | S119: =VLOOKUP(IF(S115<BenchmarkFactors!$E$4,BenchmarkFactors!$E$4,S115),BenchmarkFactors!$E$4:$F$604,2,TRUE) ->  | T119: =VLOOKUP(IF(T115<BenchmarkFactors!$E$4,BenchmarkFactors!$E$4,T115),BenchmarkFactors!$E$4:$F$604,2,TRUE) ->  | U119: Energy rating two decimal (without the distinction between below and above 5 stars) | Y119: =VLOOKUP(IF(Y115<BenchmarkFactors!$E$4,BenchmarkFactors!$E$4,Y115),BenchmarkFactors!$E$4:$F$604,2,TRUE) ->  | Z119: =VLOOKUP(IF(Z115<BenchmarkFactors!$E$4,BenchmarkFactors!$E$4,Z115),BenchmarkFactors!$E$4:$F$604,2,TRUE) -> 
B120: Energy rating (without the distinction between below and above 5 stars) | F120: =IF((ROUNDDOWN(F119*2,0)/2)>6,6,IF((ROUNDDOWN(F119*2,0)/2)<1,0,(ROUNDDOWN(F119*2,0)/2))) ->  | I120: Energy rating (without the distinction between below and above 5 stars) | M120: =IF((ROUNDDOWN(M119*2,0)/2)>6,6,IF((ROUNDDOWN(M119*2,0)/2)<1,0,(ROUNDDOWN(M119*2,0)/2))) ->  | O120: Energy rating (without the distinction between below and above 5 stars) | S120: =IF((ROUNDDOWN(S119*2,0)/2)>6,6,IF((ROUNDDOWN(S119*2,0)/2)<1,0,(ROUNDDOWN(S119*2,0)/2))) ->  | T120: =IF((ROUNDDOWN(T119*2,0)/2)>6,6,IF((ROUNDDOWN(T119*2,0)/2)<1,0,(ROUNDDOWN(T119*2,0)/2))) ->  | U120: Energy rating (without the distinction between below and above 5 stars) | Y120: =IF((ROUNDDOWN(Y119*2,0)/2)>6,6,IF((ROUNDDOWN(Y119*2,0)/2)<1,0,(ROUNDDOWN(Y119*2,0)/2))) ->  | Z120: =IF((ROUNDDOWN(Z119*2,0)/2)>6,6,IF((ROUNDDOWN(Z119*2,0)/2)<1,0,(ROUNDDOWN(Z119*2,0)/2))) -> 

Sheet Reverse Calculator (hidden)
E3: Department of Planning, Industry and Environment 4 Parramatta Square Parramatta NSW 2150 | F3: T (02) 9995 5000 E nabers@environment.nsw.gov.au nabers.gov.au
B4: NABERS Energy and Water for Apartment Buildings Reverse Calculator
B5: Version: | C5: 4 | D5: 1.2 | E5: Date: | F5: 2021-05-01
B7: The NABERS Energy and Water for Apartment Buildings reverse calculator helps you calculate the maximum amounts of energy and water a building can use to achieve a star rating that you specify. To ensure you achieve the rating, you should allow a factor of safety, and not design to the minimum figure for each star band. The outputs are the maximum amounts of energy and water allowed to be used to achieve the rating you nominate.
B10: 1. ENTER THE STAR RATING YOU WISH TO ACHIEVE
E13: STARS
E17: STARS
B21: 2 ENTER BUILDING DATA
B24: Building Postcode
B25: What is the total number of apartments?
B26: How many apartments in this scheme are centrally air-conditioned? | J26: =IF((CentralACAprts+CondWaterAprt+NoCentralACAprt)>NoofAprts,"Sum of the apartments that fall within these three categories cannot be higher than total number of apartments","") -> 
B27: How many apartments are condenser water serviced?
B28: How many apartments are no central air-conditioning serviced apartments? (no input required)
B31: 3 ENTER BUILDING DATA - ENERGY
B34: How many apartments are lift-serviced? | J34: =IF(LiftAprt>NoofAprts,"Lift-serviced apartments cannot be higher than total number of apartments","") -> 
B35: What sort of pool facility does the scheme have?
B36: Does the scheme have a gym?
B37: How many naturally ventilated car parking spaces are there?
B38: How many mechanically ventilated car parking spaces are there?
B41: 4 ENTER BUILDING DATA - WATER
B44: How many apartments are centrally metered? | J44: =IF((CentralColdWater+ColdWaterCentralDHW+ColdWaterCentralNoDHW)>NoofAprts,"Sum of the apartments that fall within these three categories cannot be higher than total number of apartments","") -> 
B45: How many apartments have their own cold water meter, and are supplied with central domestic hot water?
B46: How many apartments have their own cold water meter, and are NOT supplied with central domestic hot water?
B47: How many apartments in this scheme are central air-conditioning serviced (water)? (no input required)
B50: 5 ENTER ENERGY CONSUMPTION BREAKDOWN
B53: Percentage Breakdown of Energy Consumption: | F53: Electricity
B54: =IF(SUM(H53:H54)=1,"","ERROR: Percentage breakdown must total 100%") -> ERROR: Percentage breakdown must total 100% | F54: Gas
F55: Diesel (Oil) | H55: 0
B58: RESULTS
D61: Predicted Average Emissions for this Shopping Centre
D62: =IF(ISNUMBER(#REF!),#REF!,"") ->  | H62: kgCO2-e/year
D63: =CONCATENATE("Maximum Emissions at ",D13, " Star NABERS Energy") -> Maximum Emissions at Star NABERS Energy
D64: =IF(ISNUMBER(#REF!),#REF!,"") ->  | H64: kgCO2-e/year
D66: Actual Emissions for this Apartment Building - Scope 1, 2 and 3
D67: =IF(ISERROR(SUMPRODUCT(F75:F77,H153:H155)),"",SUMPRODUCT(F75:F77,H153:H155)) ->  | H67: kgCO2-e/year
D69: Actual Emissions for this Apartment Building - Scope 1 and 2
D70: =IF(ISERROR(SUMPRODUCT(F75:F77,I153:I155)),"",SUMPRODUCT(F75:F77,I153:I155)) ->  | H70: kgCO2-e/year
D73: Maximum Allowable Energy Consumption
E75: Electricity | F75: =IF(AND(J26="",J34="",J44=""),ROUNDDOWN(H145,0),"Please check inputs") -> 0 | H75: kWh
E76: Gas | F76: =IF(AND(J26="",J34="",J44=""),ROUNDDOWN(H146,0),"Please check inputs") -> 0 | H76: MJ
E77: Diesel (Oil) | F77: =ROUNDDOWN(H147,0) -> 0 | H77: kL
D81: Maximum Allowable Water Consumption
E82: Water | F82: =IF(AND(J26="",J34="",J44=""),IF(ISNUMBER(H202),H202,""),"Please check inputs") ->  | H82: kL/year
B93: ENERGY
B94: Predicted Energy Emissions General Inputs | H94: 1+2+3 | J94: kgCO2/MJ
B95: Elec GHG Coeff | H95: 0.9 | I95: kg/kWh | J95: =H95*0.278 -> 0.2502
B96: Gas GHG Coeff | H96: =J96*3.6 -> 0.232668 | I96: kg/kWh | J96: 0.06463
B97: Diesel GHG Coeff | H97: =2.8487/1000 -> 0.0028487 | I97: kg/kL | J97: =H97*0.0107 -> 3.048109e-05
A99: Func Spec Ref | B99: Predicted Energy Emissions Algorithm Inputs (expand hidden cells to see all Functional Spec references)
A100: APCOF05 | B100: Coefficient | H100: 39.32670033
A101: GN01 | B101: Number of Apartments | H101: =NoofAprts -> 0
A102: GN06 | B102: number of apartments with Central AC | H102: =CentralACAprts -> 0
A103: E7 | B103: Hard coded - takes into account uninhabited apartments | H103: =H102 -> 0
A104: F7 | B104: Coefficient Total number of Apartments with Central AC | H104: 3040.493772
A105: GN08 | B105: Number of apartments with condenser water service | H105: =CondWaterAprt -> 0
A106: F8 | B106: Coefficient apartments with condenser water services | H106: 2669.20407
A107: GN10 | B107: Apartments not serviced by AC | H107: =NoCentralACAprt -> 0
A108: F9 | B108: Coefficient apartments no AC serviced | H108: 0
A109: GN13 | B109: Number of lift serviced apartments | H109: =LiftAprt -> 0
A110: D12 | B110: Coefficient lift serivces | H110: 714.8345906
A111: GN15 | B111: Pool | H111: =Pool -> 
A112: D17 | B112: Coeff Pool only | H112: 662.303
A113: GN15 | B113: Heated Pool | H113: =HeatedPool -> 
A114: D16 | B114: Coeff heated Pool | H114: 1040.58056
A115: GN19 | B115: Gym | H115: =Gym -> 
A116: D19 | B116: Coeff Gym | H116: 470.0719206
A117: GN12 | B117: Number of Mechanically Ventilated Car Parking Spaces | H117: =MVCarParks -> 0
B118: Corrected number of MVCP | H118: =MIN(2*NoofAprts,MVCarParks) -> 0
A119: D22 | B119: Coeff MVCP | H119: 652.6562947
A120: GN11 | B120: Number of Naturally Ventilated Car Parking Spaces | H120: =NVCarParks -> 0
B121: Corrected number of NVCP | H121: =MIN(NVCarParks,2*NoofAprts-H118) -> 0
A122: D23 | B122: Coeff NVCP | H122: 0.2452512182
B124: Predicted Energy Emissions Final Algorithm
A125: APCOF05 | B125: Intercept | H125: =H100 -> 39.32670033 | I125: 39.327
A126: PCFF7 | B126: Central AC Value | H126: =CentralACAprts*H104/NoofAprts ->  | I126: 608.099
A127: PCFF8 | B127: Condenser Water Value | H127: =CondWaterAprt*H106/NoofAprts ->  | I127: 1067.682
A128: PCFD12 | B128: No Central Services | H128: 0
B129: Lifts | H129: =H110*LiftAprt/NoofAprts ->  | I129: 357.417
A130: PCFD16 | B130: Heated Pool | H130: =IF(H35="Temperature controlled pool",H114,0) -> 0
A131: PCFD17 | B131: Unheated Pool | H131: =IF(H35="Unheated pool",H112,0) -> 0 | I131: 622.304
A132: PCFD19 | B132: Gym | H132: =IF(H36="Yes",H116,0) -> 0 | I132: 470.072
A133: PCFD23 | B133: Car Park | H133: =(H118*H119+H121*H122*H119)/NoofAprts ->  | I133: 1305.313
B134: A State Specific Coefficient | H134: 0.95
B136: Total Predicted Energy Emissions per apartment | H136: =SUM(H125:H133)*H134 -> 
B137: Actual/predicted emissions ratio at target star rating | H137: =VLOOKUP(D13,'Rating Bands'!$B$4:$C$15,2,FALSE)-1E-21 -> 185.5
B139: Actual NABERS Energy Result
B140: Actual GHG/apartment | H140: =H137*H136/100 -> 
B141: Actual GHG, kgCO2 | H141: =H140*H101 -> 
B142: Actual GHG, kgCO2 (Electricity) | H142: =$H$141*Elec -> 
B143: Actual GHG, kgCO2 (Gas) | H143: =$H$141*(1-Elec) -> 
B144: Actual GHG, kgCO2 (Diesel) | H144: =$H$141*Diesel -> 
B145: Electricity (kWh) | H145: =IF(ISERROR(H142/H95),0,H142/H95) -> 0
B146: Gas (MJ) | H146: =IF(ISERROR(H143/J96),0,H143/J96) -> 0
B147: Diesel (kL) | H147: =IF(ISERROR(H144/H97),0,H144/H97) -> 0
B148: Effective GHG Coefficient | H148: =(H53*J95+H54*J96+H55*J97) -> 0 | I148: kgCO2/MJ
B149: Actual energy consumption MJ | H149: =H141/H148 -> 
B151: Raw emission calculations (NGA 2020) | H151: Scope 1, 2& 3 | I151: Scope 1 & 2
B152: State | H152: =VLOOKUP(H24,'Climate by postcode'!$A$4:$E$3730,5,FALSE) -> 
B153: Elec GHG Coeff 2019 | H153: =VLOOKUP(K153,'NGA Factors 2020'!$C$2:$L$20,9,FALSE) ->  | I153: =VLOOKUP(K153,'NGA Factors 2020'!$C$2:$L$20,8,FALSE) ->  | J153: kgCO2/kWh | K153: =CONCATENATE(H152,F53) -> 
B154: Gas GHG Coeff 2019 | H154: =VLOOKUP(K154,'NGA Factors 2020'!$C$2:$L$20,9,FALSE) ->  | I154: =VLOOKUP(K154,'NGA Factors 2020'!$C$2:$L$20,8,FALSE) ->  | J154: kgCO2/MJ | K154: =CONCATENATE(H152,F54) -> 
B155: Diesel GHG Coeff 2019 | H155: ='NGA Factors 2020'!K19 -> 2.84868 | I155: ='NGA Factors 2020'!J19 -> 2.70972 | J155: kgCO2/L | K155: =CONCATENATE(H152,F55) -> 
B157: Conversion Factors
B158: Electricity | H158: 3.6 | I158: MJ/kWh
B159: Coal | H159: 22.1 | I159: MJ/kg
B160: Oil | H160: 38.6 | I160: MJ/L
B162: WATER
B163: Number of apartmetnts and flags
A164: GN21 | B164: Total number of central water meter serviced apartments | H164: =ColdWaterAprt -> 0
A165: GN23 | B165: Total number of apartments own water, supplied by central domestic hot water | H165: =ColdWaterCentralDHW -> 0
A166: GN25 | B166: Total number of apartments own water, not supplied by central domestic hot water | H166: =ColdWaterCentralNoDHW -> 0
A167: GN27 | B167: Number of apartments that are central air-conditioning serviced (Water) | H167: =CentralACWater -> 0
A168: D31RAF | B168: Single water meter with central services flag | H168: =IF(AND(H164>0,H167>0),1,0) -> 0
A169: D32RAF | B169: Single water meter no central services flag | H169: =IF(AND(H164>0,H167<NoofAprts),1,0) -> 0
A170: D33RAF | B170: Apt water meters, DHW, central services flag | H170: =IF(AND(H165>0,H167>0),1,0) -> 0
A171: D34RAF | B171: Apt water meters, DHW, no central services flag | H171: =IF(AND(H165>0,H167<NoofAprts),1,0) -> 0
A172: D35RAF | B172: Apt water meters, no DHW, central services flag | H172: =IF(AND(H166>0,H167>0),1,0) -> 0
A173: D36RAF | B173: Apt water meters, no DHW, no central services flag | H173: =IF(AND(H166>0,H167<NoofAprts),1,0) -> 0
B175: Water Algorithm inputs
A176: E31 | B176: Single Water Meter with Central Services | H176: =ColdWaterAprt*CentralACWater/NoofAprts -> 
A177: F31 | B177: Single Water Meter with Central Services Coefficient | H177: 190
A178: E32 | B178: Single water meter no central services | H178: =ColdWaterAprt*(NoofAprts-CentralACWater)/NoofAprts -> 
A179: F32 | B179: Single water meter no central services Coefficient | H179: 144
A180: E33 | B180: Apt water meters, DHW, central services | H180: =ColdWaterCentralDHW*CentralACWater/NoofAprts -> 
A181: F33 | B181: Apt water meters, DHW, central services Coefficient | H181: 156
A182: E34 | B182: Apt water meters, DHW, no central services | H182: =ColdWaterCentralDHW*(NoofAprts-CentralACWater)/NoofAprts -> 
A183: F34 | B183: Apt water meters, DHW, no central services Coefficient | H183: 110
A184: E35 | B184: Apt water meters, no DHW, central services | H184: =ColdWaterCentralNoDHW*CentralACWater/NoofAprts -> 
A185: F35 | B185: Apt water meters, no DHW, central services Coefficient | H185: 138
A186: E36 | B186: Apt water meters, no DHW, no central services | H186: =ColdWaterCentralNoDHW*(NoofAprts-CentralACWater)/NoofAprts -> 
A187: F36 | B187: Apt water meters, no DHW, no central services Coefficient | H187: 92
B189: Water Algorithm formula
A190: PCFD31 | B190: Single water meter with central services | H190: =H177*H168*H176/NoofAprts -> 
A191: PCFD32 | B191: Single water meter no central services | H191: =H179*H169*H178/NoofAprts -> 
A192: PCFD33 | B192: Apt water meters, DHW, central services | H192: =H181*H170*H180/NoofAprts -> 
A193: PCFD34 | B193: Apt water meters, DHW, no central services | H193: =H183*H171*H182/NoofAprts -> 
A194: PCFD35 | B194: Apt water meters, no DHW, central services | H194: =H185*H172*H184/NoofAprts -> 
A195: PCFD36 | B195: Apt water meters, no DHW, no central services | H195: =H187*H173*H186/NoofAprts -> 
B197: Total Predicted Water Consumption per apartment | H197: =SUM(H190:H195) -> 
B198: Actual/predicted water ratio at target star rating | H198: =VLOOKUP(D17,'Rating Bands'!$B$4:$C$15,2,FALSE)-1E-21 -> 185.5
B200: Actual NABERS Water Result
B201: Total Actual Water Consumption per apartment | H201: =(H198*H197)/100 -> 
B202: Total Actual Water Consumption (kL) | H202: =H201*H101 -> 

Sheet Reverse Calculator_ERF (hidden)
E3: Department of Planning, Industry and Environment 4 Parramatta Square Parramatta NSW 2150 | F3: T (02) 9995 5000 E nabers@environment.nsw.gov.au nabers.gov.au
B4: NABERS Energy and Water for Apartment Buildings Reverse Calculator
B5: Version: | C5: 4 | D5: 1.2 | E5: Date: | F5: 2021-05-01
B7: The NABERS Energy and Water for Apartment Buildings reverse calculator helps you calculate the maximum amounts of energy and water a building can use to achieve a star rating that you specify. To ensure you achieve the rating, you should allow a factor of safety, and not design to the minimum figure for each star band. The outputs are the maximum amounts of energy and water allowed to be used to achieve the rating you nominate.
B10: 1. ENTER THE STAR RATING YOU WISH TO ACHIEVE
E13: STARS
F14: =(IF((MOD(ROUND(D13*1000,2),10)<>0),"ERROR: Rating must be in 0.01 star increment","")) -> 
E17: STARS
F18: =(IF((MOD(ROUND(D17*1000,2),10)<>0),"ERROR: Rating must be in 0.01 star increment","")) -> 
B21: 2 ENTER BUILDING DATA
B24: Building Postcode
B25: What is the total number of apartments?
B26: How many apartments in this scheme are centrally air-conditioned? | J26: =IF((CentralACAprts+CondWaterAprt+NoCentralACAprt)>NoofAprts,"Sum of the apartments that fall within these three categories cannot be higher than total number of apartments","") -> 
B27: How many apartments are condenser water serviced?
B28: How many apartments are no central air-conditioning serviced apartments? (no input required)
B31: 3 ENTER BUILDING DATA - ENERGY
B34: How many apartments are lift-serviced? | J34: =IF(LiftAprt>NoofAprts,"Lift-serviced apartments cannot be higher than total number of apartments","") -> 
B35: What sort of pool facility does the scheme have?
B36: Does the scheme have a gym?
B37: How many naturally ventilated car parking spaces are there?
B38: How many mechanically ventilated car parking spaces are there?
B41: 4 ENTER BUILDING DATA - WATER
B44: How many apartments are centrally metered? | J44: =IF((CentralColdWater+ColdWaterCentralDHW+ColdWaterCentralNoDHW)>NoofAprts,"Sum of the apartments that fall within these three categories cannot be higher than total number of apartments","") -> 
B45: How many apartments have their own cold water meter, and are supplied with central domestic hot water?
B46: How many apartments have their own cold water meter, and are NOT supplied with central domestic hot water?
B47: How many apartments in this scheme are central air-conditioning serviced (water)? (no input required)
B50: 5 ENTER ENERGY CONSUMPTION BREAKDOWN
B53: Percentage Breakdown of Energy Consumption: | F53: Electricity
B54: =IF(SUM(H53:H54)=1,"","ERROR: Percentage breakdown must total 100%") -> ERROR: Percentage breakdown must total 100% | F54: Gas
F55: Diesel (Oil) | H55: 0
B58: RESULTS
D61: Predicted Average Emissions for this Shopping Centre
D62: =IF(ISNUMBER(#REF!),#REF!,"") ->  | H62: kgCO2-e/year
D63: =CONCATENATE("Maximum Emissions at ",D13, " Star NABERS Energy") -> Maximum Emissions at Star NABERS Energy
D64: =IF(ISNUMBER(#REF!),#REF!,"") ->  | H64: kgCO2-e/year
D66: Actual Emissions for this Apartment Building - Scope 1, 2 and 3
D67: =IF(ISERROR(SUMPRODUCT(F75:F77,H153:H155)),"",SUMPRODUCT(F75:F77,H153:H155)) ->  | H67: kgCO2-e/year
D69: Actual Emissions for this Apartment Building - Scope 1 and 2
D70: =IF(ISERROR(SUMPRODUCT(F75:F77,I153:I155)),"",SUMPRODUCT(F75:F77,I153:I155)) ->  | H70: kgCO2-e/year
D73: Maximum Allowable Energy Consumption
E75: Electricity | F75: =IF(AND(J26="",J34="",J44=""),ROUNDDOWN(H145,0),"Please check inputs") -> 0 | H75: kWh
E76: Gas | F76: =IF(AND(J26="",J34="",J44=""),ROUNDDOWN(H146,0),"Please check inputs") -> 0 | H76: MJ
E77: Diesel (Oil) | F77: =ROUNDDOWN(H147,0) -> 0 | H77: kL
D81: Maximum Allowable Water Consumption
E82: Water | F82: =IF(AND(J26="",J34="",J44=""),IF(ISNUMBER(H202),H202,""),"Please check inputs") ->  | H82: kL/year
B93: ENERGY
B94: Predicted Energy Emissions General Inputs | H94: 1+2+3 | J94: kgCO2/MJ
B95: Elec GHG Coeff | H95: 0.9 | I95: kg/kWh | J95: =H95*0.278 -> 0.2502
B96: Gas GHG Coeff | H96: =J96*3.6 -> 0.232668 | I96: kg/kWh | J96: 0.06463
B97: Diesel GHG Coeff | H97: =2.8487/1000 -> 0.0028487 | I97: kg/kL | J97: =H97*0.0107 -> 3.048109e-05
A99: Func Spec Ref | B99: Predicted Energy Emissions Algorithm Inputs (expand hidden cells to see all Functional Spec references)
A100: APCOF05 | B100: Coefficient | H100: 39.32670033
A101: GN01 | B101: Number of Apartments | H101: =NoofAprts -> 0
A102: GN06 | B102: number of apartments with Central AC | H102: =CentralACAprts -> 0
A103: E7 | B103: Hard coded - takes into account uninhabited apartments | H103: =H102 -> 0
A104: F7 | B104: Coefficient Total number of Apartments with Central AC | H104: 3040.493772
A105: GN08 | B105: Number of apartments with condenser water service | H105: =CondWaterAprt -> 0
A106: F8 | B106: Coefficient apartments with condenser water services | H106: 2669.20407
A107: GN10 | B107: Apartments not serviced by AC | H107: =NoCentralACAprt -> 0
A108: F9 | B108: Coefficient apartments no AC serviced | H108: 0
A109: GN13 | B109: Number of lift serviced apartments | H109: =LiftAprt -> 0
A110: D12 | B110: Coefficient lift serivces | H110: 714.8345906
A111: GN15 | B111: Pool | H111: =Pool -> 
A112: D17 | B112: Coeff Pool only | H112: 662.303
A113: GN15 | B113: Heated Pool | H113: =HeatedPool -> 
A114: D16 | B114: Coeff heated Pool | H114: 1040.58056
A115: GN19 | B115: Gym | H115: =Gym -> 
A116: D19 | B116: Coeff Gym | H116: 470.0719206
A117: GN12 | B117: Number of Mechanically Ventilated Car Parking Spaces | H117: =MVCarParks -> 0
B118: Corrected number of MVCP | H118: =MIN(2*NoofAprts,MVCarParks) -> 0
A119: D22 | B119: Coeff MVCP | H119: 652.6562947
A120: GN11 | B120: Number of Naturally Ventilated Car Parking Spaces | H120: =NVCarParks -> 0
B121: Corrected number of NVCP | H121: =MIN(NVCarParks,2*NoofAprts-H118) -> 0
A122: D23 | B122: Coeff NVCP | H122: 0.2452512182
B124: Predicted Energy Emissions Final Algorithm
A125: APCOF05 | B125: Intercept | H125: =H100 -> 39.32670033 | I125: 39.327
A126: PCFF7 | B126: Central AC Value | H126: =CentralACAprts*H104/NoofAprts ->  | I126: 608.099
A127: PCFF8 | B127: Condenser Water Value | H127: =CondWaterAprt*H106/NoofAprts ->  | I127: 1067.682
A128: PCFD12 | B128: No Central Services | H128: 0
B129: Lifts | H129: =H110*LiftAprt/NoofAprts ->  | I129: 357.417
A130: PCFD16 | B130: Heated Pool | H130: =IF(H35="Temperature controlled pool",H114,0) -> 0
A131: PCFD17 | B131: Unheated Pool | H131: =IF(H35="Unheated pool",H112,0) -> 0 | I131: 622.304
A132: PCFD19 | B132: Gym | H132: =IF(H36="Yes",H116,0) -> 0 | I132: 470.072
A133: PCFD23 | B133: Car Park | H133: =(H118*H119+H121*H122*H119)/NoofAprts ->  | I133: 1305.313
B134: A State Specific Coefficient | H134: 0.95
B136: Total Predicted Energy Emissions per apartment | H136: =SUM(H125:H133)*H134 -> 
B137: Actual/predicted emissions ratio at target star rating | H137: =VLOOKUP(D13,'Rating Bands'!$B$18:$C$618,2,FALSE)-1E-21 -> 185.5
B139: Actual NABERS Energy Result
B140: Actual GHG/apartment | H140: =H137*H136/100 -> 
B141: Actual GHG, kgCO2 | H141: =H140*H101 -> 
B142: Actual GHG, kgCO2 (Electricity) | H142: =$H$141*Elec -> 
B143: Actual GHG, kgCO2 (Gas) | H143: =$H$141*(1-Elec) -> 
B144: Actual GHG, kgCO2 (Diesel) | H144: =$H$141*Diesel -> 
B145: Electricity (kWh) | H145: =IF(ISERROR(H142/H95),0,H142/H95) -> 0
B146: Gas (MJ) | H146: =IF(ISERROR(H143/J96),0,H143/J96) -> 0
B147: Diesel (kL) | H147: =IF(ISERROR(H144/H97),0,H144/H97) -> 0
B148: Effective GHG Coefficient | H148: =(H53*J95+H54*J96+H55*J97) -> 0 | I148: kgCO2/MJ
B149: Actual energy consumption MJ | H149: =H141/H148 -> 
B151: Raw emission calculations (NGA 2020) | H151: Scope 1, 2& 3 | I151: Scope 1 & 2
B152: State | H152: =VLOOKUP(H24,'Climate by postcode'!$A$4:$E$3730,5,FALSE) -> 
B153: Elec GHG Coeff 2019 | H153: =VLOOKUP(K153,'NGA Factors 2020'!$C$2:$L$20,9,FALSE) ->  | I153: =VLOOKUP(K153,'NGA Factors 2020'!$C$2:$L$20,8,FALSE) ->  | J153: kgCO2/kWh | K153: =CONCATENATE(H152,F53) -> 
B154: Gas GHG Coeff 2019 | H154: =VLOOKUP(K154,'NGA Factors 2020'!$C$2:$L$20,9,FALSE) ->  | I154: =VLOOKUP(K154,'NGA Factors 2020'!$C$2:$L$20,8,FALSE) ->  | J154: kgCO2/MJ | K154: =CONCATENATE(H152,F54) -> 
B155: Diesel GHG Coeff 2019 | H155: ='NGA Factors 2020'!K19 -> 2.84868 | I155: ='NGA Factors 2020'!J19 -> 2.70972 | J155: kgCO2/L | K155: =CONCATENATE(H152,F55) -> 
B157: Conversion Factors
B158: Electricity | H158: 3.6 | I158: MJ/kWh
B159: Coal | H159: 22.1 | I159: MJ/kg
B160: Oil | H160: 38.6 | I160: MJ/L
B162: WATER
B163: Number of apartmetnts and flags
A164: GN21 | B164: Total number of central water meter serviced apartments | H164: =ColdWaterAprt -> 0
A165: GN23 | B165: Total number of apartments own water, supplied by central domestic hot water | H165: =ColdWaterCentralDHW -> 0
A166: GN25 | B166: Total number of apartments own water, not supplied by central domestic hot water | H166: =ColdWaterCentralNoDHW -> 0
A167: GN27 | B167: Number of apartments that are central air-conditioning serviced (Water) | H167: =CentralACWater -> 0
A168: D31RAF | B168: Single water meter with central services flag | H168: =IF(AND(H164>0,H167>0),1,0) -> 0
A169: D32RAF | B169: Single water meter no central services flag | H169: =IF(AND(H164>0,H167<NoofAprts),1,0) -> 0
A170: D33RAF | B170: Apt water meters, DHW, central services flag | H170: =IF(AND(H165>0,H167>0),1,0) -> 0
A171: D34RAF | B171: Apt water meters, DHW, no central services flag | H171: =IF(AND(H165>0,H167<NoofAprts),1,0) -> 0
A172: D35RAF | B172: Apt water meters, no DHW, central services flag | H172: =IF(AND(H166>0,H167>0),1,0) -> 0
A173: D36RAF | B173: Apt water meters, no DHW, no central services flag | H173: =IF(AND(H166>0,H167<NoofAprts),1,0) -> 0
B175: Water Algorithm inputs
A176: E31 | B176: Single Water Meter with Central Services | H176: =ColdWaterAprt*CentralACWater/NoofAprts -> 
A177: F31 | B177: Single Water Meter with Central Services Coefficient | H177: 190
A178: E32 | B178: Single water meter no central services | H178: =ColdWaterAprt*(NoofAprts-CentralACWater)/NoofAprts -> 
A179: F32 | B179: Single water meter no central services Coefficient | H179: 144
A180: E33 | B180: Apt water meters, DHW, central services | H180: =ColdWaterCentralDHW*CentralACWater/NoofAprts -> 
A181: F33 | B181: Apt water meters, DHW, central services Coefficient | H181: 156
A182: E34 | B182: Apt water meters, DHW, no central services | H182: =ColdWaterCentralDHW*(NoofAprts-CentralACWater)/NoofAprts -> 
A183: F34 | B183: Apt water meters, DHW, no central services Coefficient | H183: 110
A184: E35 | B184: Apt water meters, no DHW, central services | H184: =ColdWaterCentralNoDHW*CentralACWater/NoofAprts -> 
A185: F35 | B185: Apt water meters, no DHW, central services Coefficient | H185: 138
A186: E36 | B186: Apt water meters, no DHW, no central services | H186: =ColdWaterCentralNoDHW*(NoofAprts-CentralACWater)/NoofAprts -> 
A187: F36 | B187: Apt water meters, no DHW, no central services Coefficient | H187: 92
B189: Water Algorithm formula
A190: PCFD31 | B190: Single water meter with central services | H190: =H177*H168*H176/NoofAprts -> 
A191: PCFD32 | B191: Single water meter no central services | H191: =H179*H169*H178/NoofAprts -> 
A192: PCFD33 | B192: Apt water meters, DHW, central services | H192: =H181*H170*H180/NoofAprts -> 
A193: PCFD34 | B193: Apt water meters, DHW, no central services | H193: =H183*H171*H182/NoofAprts -> 
A194: PCFD35 | B194: Apt water meters, no DHW, central services | H194: =H185*H172*H184/NoofAprts -> 
A195: PCFD36 | B195: Apt water meters, no DHW, no central services | H195: =H187*H173*H186/NoofAprts -> 
B197: Total Predicted Water Consumption per apartment | H197: =SUM(H190:H195) -> 
B198: Actual/predicted water ratio at target star rating | H198: =VLOOKUP(D17,'Rating Bands'!$B$18:$C$618,2,FALSE)-1E-21 -> 185.5
B200: Actual NABERS Water Result
B201: Total Actual Water Consumption per apartment | H201: =(H198*H197)/100 -> 
B202: Total Actual Water Consumption (kL) | H202: =H201*H101 -> 

Sheet Climate by postcode (hidden)
A1: Postcode and Climate Zone reference for calculating climate correction factors
A3: Postcode | B3: Climate_zone | C3: HDD | D3: CDD | E3: State
A4: 200 | B4: 64 | C4: 2186 | D4: 80 | E4: ACT
A5: 211 | B5: 64 | C5: 2186 | D5: 80 | E5: ACT
A6: 212 | B6: 64 | C6: 2186 | D6: 80 | E6: ACT
A7: 221 | B7: 64 | C7: 2186 | D7: 80 | E7: ACT
A8: 230 | B8: 64 | C8: 2186 | D8: 80 | E8: ACT
A9: 237 | B9: 64 | C9: 2186 | D9: 80 | E9: ACT
A10: 238 | B10: 64 | C10: 2186 | D10: 80 | E10: ACT
A11: 239 | B11: 64 | C11: 2186 | D11: 80 | E11: ACT
A12: 240 | B12: 64 | C12: 2186 | D12: 80 | E12: ACT
A13: 241 | B13: 64 | C13: 2186 | D13: 80 | E13: ACT
A14: 242 | B14: 64 | C14: 2186 | D14: 80 | E14: ACT
A15: 243 | B15: 64 | C15: 2186 | D15: 80 | E15: ACT
A16: 244 | B16: 64 | C16: 2186 | D16: 80 | E16: ACT
A17: 245 | B17: 64 | C17: 2186 | D17: 80 | E17: ACT
A18: 246 | B18: 64 | C18: 2186 | D18: 80 | E18: ACT
A19: 247 | B19: 64 | C19: 2186 | D19: 80 | E19: ACT
A20: 248 | B20: 64 | C20: 2186 | D20: 80 | E20: ACT
A21: 249 | B21: 64 | C21: 2186 | D21: 80 | E21: ACT
A22: 250 | B22: 64 | C22: 2186 | D22: 80 | E22: ACT
A23: 251 | B23: 64 | C23: 2186 | D23: 80 | E23: ACT
A24: 252 | B24: 64 | C24: 2186 | D24: 80 | E24: ACT
A25: 253 | B25: 64 | C25: 2186 | D25: 80 | E25: ACT
A26: 254 | B26: 64 | C26: 2186 | D26: 80 | E26: ACT
A27: 255 | B27: 64 | C27: 2186 | D27: 80 | E27: ACT
A28: 256 | B28: 64 | C28: 2186 | D28: 80 | E28: ACT
A29: 257 | B29: 64 | C29: 2186 | D29: 80 | E29: ACT
A30: 258 | B30: 64 | C30: 2186 | D30: 80 | E30: ACT
A31: 259 | B31: 64 | C31: 2186 | D31: 80 | E31: ACT
A32: 260 | B32: 64 | C32: 2186 | D32: 80 | E32: ACT
A33: 261 | B33: 64 | C33: 2186 | D33: 80 | E33: ACT
A34: 262 | B34: 64 | C34: 2186 | D34: 80 | E34: ACT
A35: 263 | B35: 64 | C35: 2186 | D35: 80 | E35: ACT
A36: 264 | B36: 64 | C36: 2186 | D36: 80 | E36: ACT
A37: 266 | B37: 64 | C37: 2186 | D37: 80 | E37: ACT
A38: 267 | B38: 64 | C38: 2186 | D38: 80 | E38: ACT
A39: 268 | B39: 64 | C39: 2186 | D39: 80 | E39: ACT
A40: 269 | B40: 64 | C40: 2186 | D40: 80 | E40: ACT
A41: 270 | B41: 64 | C41: 2186 | D41: 80 | E41: ACT
A42: 271 | B42: 64 | C42: 2186 | D42: 80 | E42: ACT
A43: 272 | B43: 64 | C43: 2186 | D43: 80 | E43: ACT
A44: 273 | B44: 64 | C44: 2186 | D44: 80 | E44: ACT
A45: 274 | B45: 64 | C45: 2186 | D45: 80 | E45: ACT
A46: 275 | B46: 64 | C46: 2186 | D46: 80 | E46: ACT
A47: 276 | B47: 64 | C47: 2186 | D47: 80 | E47: ACT
A48: 277 | B48: 64 | C48: 2186 | D48: 80 | E48: ACT
A49: 278 | B49: 64 | C49: 2186 | D49: 80 | E49: ACT
A50: 279 | B50: 64 | C50: 2186 | D50: 80 | E50: ACT
A51: 280 | B51: 64 | C51: 2186 | D51: 80 | E51: ACT
A52: 281 | B52: 64 | C52: 2186 | D52: 80 | E52: ACT
A53: 282 | B53: 64 | C53: 2186 | D53: 80 | E53: ACT
A54: 283 | B54: 64 | C54: 2186 | D54: 80 | E54: ACT
A55: 284 | B55: 64 | C55: 2186 | D55: 80 | E55: ACT
A56: 285 | B56: 64 | C56: 2186 | D56: 80 | E56: ACT
A57: 286 | B57: 64 | C57: 2186 | D57: 80 | E57: ACT
A58: 287 | B58: 64 | C58: 2186 | D58: 80 | E58: ACT
A59: 288 | B59: 64 | C59: 2186 | D59: 80 | E59: ACT
A60: 289 | B60: 64 | C60: 2186 | D60: 80 | E60: ACT
A61: 290 | B61: 64 | C61: 2186 | D61: 80 | E61: ACT
A62: 291 | B62: 64 | C62: 2186 | D62: 80 | E62: ACT
A63: 293 | B63: 64 | C63: 2186 | D63: 80 | E63: ACT
A64: 294 | B64: 64 | C64: 2186 | D64: 80 | E64: ACT
A65: 295 | B65: 64 | C65: 2186 | D65: 80 | E65: ACT
A66: 296 | B66: 64 | C66: 2186 | D66: 80 | E66: ACT
A67: 297 | B67: 64 | C67: 2186 | D67: 80 | E67: ACT
A68: 298 | B68: 64 | C68: 2186 | D68: 80 | E68: ACT
A69: 299 | B69: 64 | C69: 2186 | D69: 80 | E69: ACT
A70: 800 | B70: 66 | C70: 0 | D70: 2895 | E70: NT
A71: 801 | B71: 66 | C71: 0 | D71: 2895 | E71: NT
A72: 804 | B72: 66 | C72: 0 | D72: 2895 | E72: NT
A73: 810 | B73: 66 | C73: 0 | D73: 2895 | E73: NT
A74: 811 | B74: 66 | C74: 0 | D74: 2895 | E74: NT
A75: 812 | B75: 66 | C75: 0 | D75: 2895 | E75: NT
A76: 813 | B76: 66 | C76: 0 | D76: 2895 | E76: NT
A77: 814 | B77: 66 | C77: 0 | D77: 2895 | E77: NT
A78: 815 | B78: 66 | C78: 0 | D78: 2895 | E78: NT
A79: 820 | B79: 66 | C79: 0 | D79: 2895 | E79: NT
A80: 821 | B80: 66 | C80: 0 | D80: 2895 | E80: NT
A81: 822 | B81: 66 | C81: 0 | D81: 2895 | E81: NT
A82: 828 | B82: 66 | C82: 0 | D82: 2895 | E82: NT
A83: 830 | B83: 66 | C83: 0 | D83: 2895 | E83: NT
A84: 831 | B84: 66 | C84: 0 | D84: 2895 | E84: NT
A85: 832 | B85: 66 | C85: 0 | D85: 2895 | E85: NT
A86: 835 | B86: 66 | C86: 0 | D86: 2895 | E86: NT
A87: 836 | B87: 66 | C87: 0 | D87: 2895 | E87: NT
A88: 837 | B88: 66 | C88: 0 | D88: 2895 | E88: NT
A89: 840 | B89: 66 | C89: 0 | D89: 2895 | E89: NT
A90: 845 | B90: 66 | C90: 0 | D90: 2895 | E90: NT
A91: 846 | B91: 66 | C91: 0 | D91: 2895 | E91: NT
A92: 847 | B92: 66 | C92: 0 | D92: 2895 | E92: NT
A93: 850 | B93: 66 | C93: 0 | D93: 2895 | E93: NT
A94: 851 | B94: 66 | C94: 0 | D94: 2895 | E94: NT
A95: 852 | B95: 66 | C95: 0 | D95: 2895 | E95: NT
A96: 853 | B96: 66 | C96: 0 | D96: 2895 | E96: NT
A97: 854 | B97: 66 | C97: 0 | D97: 2895 | E97: NT
A98: 860 | B98: 70 | C98: 79 | D98: 958 | E98: NT
A99: 861 | B99: 70 | C99: 79 | D99: 958 | E99: NT
A100: 862 | B100: 70 | C100: 79 | D100: 958 | E100: NT
A101: 870 | B101: 71 | C101: 660 | D101: 379 | E101: NT
A102: 871 | B102: 71 | C102: 660 | D102: 379 | E102: NT
A103: 872 | B103: 71 | C103: 660 | D103: 379 | E103: NT
A104: 880 | B104: 67 | C104: 0 | D104: 3344 | E104: NT
A105: 881 | B105: 67 | C105: 0 | D105: 3344 | E105: NT
A106: 885 | B106: 67 | C106: 0 | D106: 3344 | E106: NT
A107: 886 | B107: 66 | C107: 0 | D107: 2895 | E107: NT
A108: 909 | B108: 66 | C108: 0 | D108: 2895 | E108: NT
A109: 1001 | B109: 63 | C109: 642 | D109: 541 | E109: NSW
A110: 1002 | B110: 63 | C110: 642 | D110: 541 | E110: NSW
A111: 1003 | B111: 63 | C111: 642 | D111: 541 | E111: NSW
A112: 1004 | B112: 63 | C112: 642 | D112: 541 | E112: NSW
A113: 1005 | B113: 63 | C113: 642 | D113: 541 | E113: NSW
A114: 1006 | B114: 63 | C114: 642 | D114: 541 | E114: NSW
A115: 1007 | B115: 63 | C115: 642 | D115: 541 | E115: NSW
A116: 1008 | B116: 63 | C116: 642 | D116: 541 | E116: NSW
A117: 1009 | B117: 63 | C117: 642 | D117: 541 | E117: NSW
A118: 1010 | B118: 63 | C118: 642 | D118: 541 | E118: NSW
A119: 1011 | B119: 63 | C119: 642 | D119: 541 | E119: NSW
A120: 1012 | B120: 63 | C120: 642 | D120: 541 | E120: NSW
A121: 1013 | B121: 63 | C121: 642 | D121: 541 | E121: NSW
A122: 1015 | B122: 63 | C122: 642 | D122: 541 | E122: NSW
A123: 1016 | B123: 63 | C123: 642 | D123: 541 | E123: NSW
A124: 1017 | B124: 63 | C124: 642 | D124: 541 | E124: NSW
A125: 1018 | B125: 63 | C125: 642 | D125: 541 | E125: NSW
A126: 1019 | B126: 63 | C126: 642 | D126: 541 | E126: NSW
A127: 1020 | B127: 63 | C127: 642 | D127: 541 | E127: NSW
A128: 1021 | B128: 63 | C128: 642 | D128: 541 | E128: NSW
A129: 1022 | B129: 63 | C129: 642 | D129: 541 | E129: NSW
A130: 1023 | B130: 63 | C130: 642 | D130: 541 | E130: NSW
A131: 1024 | B131: 63 | C131: 642 | D131: 541 | E131: NSW
A132: 1025 | B132: 63 | C132: 642 | D132: 541 | E132: NSW
A133: 1026 | B133: 63 | C133: 642 | D133: 541 | E133: NSW
A134: 1027 | B134: 63 | C134: 642 | D134: 541 | E134: NSW
A135: 1028 | B135: 63 | C135: 642 | D135: 541 | E135: NSW
A136: 1029 | B136: 63 | C136: 642 | D136: 541 | E136: NSW
A137: 1030 | B137: 63 | C137: 642 | D137: 541 | E137: NSW
A138: 1031 | B138: 63 | C138: 642 | D138: 541 | E138: NSW
A139: 1032 | B139: 63 | C139: 642 | D139: 541 | E139: NSW
A140: 1033 | B140: 63 | C140: 642 | D140: 541 | E140: NSW
A141: 1034 | B141: 63 | C141: 642 | D141: 541 | E141: NSW
A142: 1035 | B142: 63 | C142: 642 | D142: 541 | E142: NSW
A143: 1036 | B143: 63 | C143: 642 | D143: 541 | E143: NSW
A144: 1037 | B144: 63 | C144: 642 | D144: 541 | E144: NSW
A145: 1038 | B145: 63 | C145: 642 | D145: 541 | E145: NSW
A146: 1039 | B146: 63 | C146: 642 | D146: 541 | E146: NSW
A147: 1040 | B147: 63 | C147: 642 | D147: 541 | E147: NSW
A148: 1041 | B148: 63 | C148: 642 | D148: 541 | E148: NSW
A149: 1042 | B149: 63 | C149: 642 | D149: 541 | E149: NSW
A150: 1043 | B150: 63 | C150: 642 | D150: 541 | E150: NSW
A151: 1044 | B151: 63 | C151: 642 | D151: 541 | E151: NSW
A152: 1045 | B152: 63 | C152: 642 | D152: 541 | E152: NSW
A153: 1046 | B153: 63 | C153: 642 | D153: 541 | E153: NSW
A154: 1047 | B154: 63 | C154: 642 | D154: 541 | E154: NSW
A155: 1048 | B155: 63 | C155: 642 | D155: 541 | E155: NSW
A156: 1049 | B156: 63 | C156: 642 | D156: 541 | E156: NSW
A157: 1050 | B157: 63 | C157: 642 | D157: 541 | E157: NSW
A158: 1051 | B158: 63 | C158: 642 | D158: 541 | E158: NSW
A159: 1052 | B159: 63 | C159: 642 | D159: 541 | E159: NSW
A160: 1053 | B160: 63 | C160: 642 | D160: 541 | E160: NSW
A161: 1054 | B161: 63 | C161: 642 | D161: 541 | E161: NSW
A162: 1055 | B162: 63 | C162: 642 | D162: 541 | E162: NSW
A163: 1056 | B163: 63 | C163: 642 | D163: 541 | E163: NSW
A164: 1057 | B164: 63 | C164: 642 | D164: 541 | E164: NSW
A165: 1058 | B165: 63 | C165: 642 | D165: 541 | E165: NSW
A166: 1059 | B166: 63 | C166: 642 | D166: 541 | E166: NSW
A167: 1060 | B167: 63 | C167: 642 | D167: 541 | E167: NSW
A168: 1061 | B168: 63 | C168: 642 | D168: 541 | E168: NSW
A169: 1062 | B169: 63 | C169: 642 | D169: 541 | E169: NSW
A170: 1063 | B170: 63 | C170: 642 | D170: 541 | E170: NSW
A171: 1064 | B171: 63 | C171: 642 | D171: 541 | E171: NSW
A172: 1065 | B172: 63 | C172: 642 | D172: 541 | E172: NSW
A173: 1066 | B173: 63 | C173: 642 | D173: 541 | E173: NSW
A174: 1067 | B174: 63 | C174: 642 | D174: 541 | E174: NSW
A175: 1068 | B175: 63 | C175: 642 | D175: 541 | E175: NSW
A176: 1069 | B176: 63 | C176: 642 | D176: 541 | E176: NSW
A177: 1070 | B177: 63 | C177: 642 | D177: 541 | E177: NSW
A178: 1071 | B178: 63 | C178: 642 | D178: 541 | E178: NSW
A179: 1072 | B179: 63 | C179: 642 | D179: 541 | E179: NSW
A180: 1073 | B180: 63 | C180: 642 | D180: 541 | E180: NSW
A181: 1074 | B181: 63 | C181: 642 | D181: 541 | E181: NSW
A182: 1075 | B182: 63 | C182: 642 | D182: 541 | E182: NSW
A183: 1076 | B183: 63 | C183: 642 | D183: 541 | E183: NSW
A184: 1077 | B184: 63 | C184: 642 | D184: 541 | E184: NSW
A185: 1078 | B185: 63 | C185: 642 | D185: 541 | E185: NSW
A186: 1079 | B186: 63 | C186: 642 | D186: 541 | E186: NSW
A187: 1080 | B187: 63 | C187: 642 | D187: 541 | E187: NSW
A188: 1081 | B188: 63 | C188: 642 | D188: 541 | E188: NSW
A189: 1082 | B189: 63 | C189: 642 | D189: 541 | E189: NSW
A190: 1083 | B190: 63 | C190: 642 | D190: 541 | E190: NSW
A191: 1084 | B191: 63 | C191: 642 | D191: 541 | E191: NSW
A192: 1085 | B192: 63 | C192: 642 | D192: 541 | E192: NSW
A193: 1086 | B193: 63 | C193: 642 | D193: 541 | E193: NSW
A194: 1087 | B194: 63 | C194: 642 | D194: 541 | E194: NSW
A195: 1088 | B195: 63 | C195: 642 | D195: 541 | E195: NSW
A196: 1089 | B196: 63 | C196: 642 | D196: 541 | E196: NSW
A197: 1090 | B197: 63 | C197: 642 | D197: 541 | E197: NSW
A198: 1091 | B198: 63 | C198: 642 | D198: 541 | E198: NSW
A199: 1092 | B199: 63 | C199: 642 | D199: 541 | E199: NSW
A200: 1093 | B200: 63 | C200: 642 | D200: 541 | E200: NSW
A201: 1094 | B201: 63 | C201: 642 | D201: 541 | E201: NSW
... 3529 more rows

Sheet SGEx (hidden)
A1: APARTMENT BUILDING RATING
A2: Emission Factor for star rating calculation (Based on EA methodology report 2018)
A4: SGEx (2018)
B5: Electricity (SGEe) | C5: Gas (SGEg) | D5: Diesel (SGEd) | E5: Coal (SGEc)
A6: State | B6: (kgCO2/kWh) | C6: (kgCO2/MJ) | D6: (kgCO2/Litre) | E6: (kgCO2/kg)
A7: ACT | B7: 0.95 | C7: 0.06388888889 | D7: 2.84868 | E7: 2.3064
A8: NSW | B8: 0.95 | C8: 0.06388888889 | D8: 2.84868 | E8: 2.3064
A9: NT | B9: 0.95 | C9: 0.06388888889 | D9: 2.84868 | E9: 2.3064
A10: QLD | B10: 0.95 | C10: 0.06388888889 | D10: 2.84868 | E10: 2.3064
A11: SA | B11: 0.95 | C11: 0.06388888889 | D11: 2.84868 | E11: 2.3064
A12: TAS | B12: 0.95 | C12: 0.06388888889 | D12: 2.84868 | E12: 4.2972
A13: VIC | B13: 0.95 | C13: 0.06388888889 | D13: 2.84868 | E13: 2.3064
A14: WA | B14: 0.95 | C14: 0.06388888889 | D14: 2.84868 | E14: 2.3064
A16: SGEx (2020)
B17: Electricity (SGEe) | C17: Gas (SGEg) | D17: Diesel (SGEd) | E17: Coal (SGEc)
A18: State | B18: (kgCO2/kWh) | C18: (kgCO2/MJ) | D18: (kgCO2/Litre) | E18: (kgCO2/kg)
A19: ACT | B19: 0.9 | C19: 0.06463 | D19: 2.84868 | E19: 2.51748
A20: NSW | B20: 0.9 | C20: 0.06463 | D20: 2.84868 | E20: 2.51748
A21: NT | B21: 0.9 | C21: 0.06463 | D21: 2.84868 | E21: 2.51748
A22: QLD | B22: 0.9 | C22: 0.06463 | D22: 2.84868 | E22: 2.51748
A23: SA | B23: 0.9 | C23: 0.06463 | D23: 2.84868 | E23: 2.51748
A24: TAS | B24: 0.9 | C24: 0.06463 | D24: 2.84868 | E24: 2.51748
A25: VIC | B25: 0.9 | C25: 0.06463 | D25: 2.84868 | E25: 2.51748
A26: WA | B26: 0.9 | C26: 0.06463 | D26: 2.84868 | E26: 2.51748
A28: SGEx (2025) | G28: RAPID - SGEx (2025)
B29: Electricity (SGEe) | C29: Gas (SGEg) | D29: Diesel (SGEd) | E29: Coal (SGEc) | H29: Electricity (SGEe) | I29: Gas (SGEg) | J29: Diesel (SGEd) | K29: Coal (SGEc)
A30: State | B30: (kgCO2/kWh) | C30: (kgCO2/MJ) | D30: (kgCO2/Litre) | E30: (kgCO2/kg) | G30: State | H30: (kgCO2/kWh) | I30: (kgCO2/MJ) | J30: (kgCO2/Litre) | K30: (kgCO2/kg)
A31: ACT | B31: 0.62 | C31: 0.06463 | D31: 2.84868 | E31: 2.51748 | G31: ACT | H31: 0.583 | I31: 0.06463 | J31: 2.84868 | K31: 2.51748
A32: NSW | B32: 0.62 | C32: 0.06463 | D32: 2.84868 | E32: 2.51748 | G32: NSW | H32: 0.583 | I32: 0.06463 | J32: 2.84868 | K32: 2.51748
A33: NT | B33: 0.62 | C33: 0.06463 | D33: 2.84868 | E33: 2.51748 | G33: NT | H33: 0.583 | I33: 0.06463 | J33: 2.84868 | K33: 2.51748
A34: QLD | B34: 0.62 | C34: 0.06463 | D34: 2.84868 | E34: 2.51748 | G34: QLD | H34: 0.583 | I34: 0.06463 | J34: 2.84868 | K34: 2.51748
A35: SA | B35: 0.62 | C35: 0.06463 | D35: 2.84868 | E35: 2.51748 | G35: SA | H35: 0.583 | I35: 0.06463 | J35: 2.84868 | K35: 2.51748
A36: TAS | B36: 0.62 | C36: 0.06463 | D36: 2.84868 | E36: 2.51748 | G36: TAS | H36: 0.583 | I36: 0.06463 | J36: 2.84868 | K36: 2.51748
A37: VIC | B37: 0.62 | C37: 0.06463 | D37: 2.84868 | E37: 2.51748 | G37: VIC | H37: 0.583 | I37: 0.06463 | J37: 2.84868 | K37: 2.51748
A38: WA | B38: 0.62 | C38: 0.06463 | D38: 2.84868 | E38: 2.51748 | G38: WA | H38: 0.583 | I38: 0.06463 | J38: 2.84868 | K38: 2.51748
A40: SGEx (2030) | G40: RAPID - SGEx (2030)
B41: Electricity (SGEe) | C41: Gas (SGEg) | D41: Diesel (SGEd) | E41: Coal (SGEc) | H41: Electricity (SGEe) | I41: Gas (SGEg) | J41: Diesel (SGEd) | K41: Coal (SGEc)
A42: State | B42: (kgCO2/kWh) | C42: (kgCO2/MJ) | D42: (kgCO2/Litre) | E42: (kgCO2/kg) | G42: State | H42: (kgCO2/kWh) | I42: (kgCO2/MJ) | J42: (kgCO2/Litre) | K42: (kgCO2/kg)
A43: ACT | B43: 0.53 | C43: 0.06463 | D43: 2.84868 | E43: 2.51748 | G43: ACT | H43: 0.265 | I43: 0.06463 | J43: 2.84868 | K43: 2.51748
A44: NSW | B44: 0.53 | C44: 0.06463 | D44: 2.84868 | E44: 2.51748 | G44: NSW | H44: 0.265 | I44: 0.06463 | J44: 2.84868 | K44: 2.51748
A45: NT | B45: 0.53 | C45: 0.06463 | D45: 2.84868 | E45: 2.51748 | G45: NT | H45: 0.265 | I45: 0.06463 | J45: 2.84868 | K45: 2.51748
A46: QLD | B46: 0.53 | C46: 0.06463 | D46: 2.84868 | E46: 2.51748 | G46: QLD | H46: 0.265 | I46: 0.06463 | J46: 2.84868 | K46: 2.51748
A47: SA | B47: 0.53 | C47: 0.06463 | D47: 2.84868 | E47: 2.51748 | G47: SA | H47: 0.265 | I47: 0.06463 | J47: 2.84868 | K47: 2.51748
A48: TAS | B48: 0.53 | C48: 0.06463 | D48: 2.84868 | E48: 2.51748 | G48: TAS | H48: 0.265 | I48: 0.06463 | J48: 2.84868 | K48: 2.51748
A49: VIC | B49: 0.53 | C49: 0.06463 | D49: 2.84868 | E49: 2.51748 | G49: VIC | H49: 0.265 | I49: 0.06463 | J49: 2.84868 | K49: 2.51748
A50: WA | B50: 0.53 | C50: 0.06463 | D50: 2.84868 | E50: 2.51748 | G50: WA | H50: 0.265 | I50: 0.06463 | J50: 2.84868 | K50: 2.51748

Sheet SSC (A) (hidden)
A1: APARTMENT BUILDING RATING
A2: The State Specific Co-efficient
A4: State Specific coefficients (A):
A5: Premise state | B5: 2020 | C5: 2025 SLOW | D5: 2030 SLOW | E5: 2025 RAPID | F5: 2030 RAPID
A6: ACT | B6: 0.95 | C6: 0.669 | D6: 0.579 | E6: 0.632 | F6: 0.313
A7: NSW | B7: 0.95 | C7: 0.669 | D7: 0.579 | E7: 0.632 | F7: 0.313
A8: NT | B8: 0.95 | C8: 0.669 | D8: 0.579 | E8: 0.632 | F8: 0.313
A9: QLD | B9: 0.95 | C9: 0.669 | D9: 0.579 | E9: 0.632 | F9: 0.313
A10: SA | B10: 0.95 | C10: 0.669 | D10: 0.579 | E10: 0.632 | F10: 0.313
A11: TAS | B11: 0.95 | C11: 0.669 | D11: 0.579 | E11: 0.632 | F11: 0.313
A12: VIC | B12: 0.95 | C12: 0.669 | D12: 0.579 | E12: 0.632 | F12: 0.313
A13: WA | B13: 0.95 | C13: 0.669 | D13: 0.579 | E13: 0.632 | F13: 0.313

Sheet BenchmarkFactors (hidden)
A1: Energy & Water | B1: Benchmark Factors
A2: Lower Limit | B2: Upper Limit | C2: Star Rating | E2: Interpolated Bands
A3: 0 | B3: 26.5 | C3: 6 | E3: Ratio | F3: Stars
A4: 26.5 | B4: 39.75 | C4: 5.5 | E4: 26.5 | F4: 6
A5: 39.75 | B5: 53 | C5: 5 | E5: 26.765 | F5: 5.99
A6: 53 | B6: 66.25 | C6: 4.5 | E6: 27.03 | F6: 5.98
A7: 66.25 | B7: 79.5 | C7: 4 | E7: 27.295 | F7: 5.97
A8: 79.5 | B8: 92.75 | C8: 3.5 | E8: 27.56 | F8: 5.96
A9: 92.75 | B9: 106 | C9: 3 | E9: 27.825 | F9: 5.95
A10: 106 | B10: 119.25 | C10: 2.5 | E10: 28.09 | F10: 5.94
A11: 119.25 | B11: 132.5 | C11: 2 | E11: 28.355 | F11: 5.93
A12: 132.5 | B12: 145.75 | C12: 1.5 | E12: 28.62 | F12: 5.92
A13: 145.75 | B13: 159 | C13: 1 | E13: 28.885 | F13: 5.91
A14: 159 | C14: 0 | E14: 29.15 | F14: 5.9
E15: 29.415 | F15: 5.89
B16: Slope | C16: =SLOPE(C3:C13,B3:B13) -> -0.03773584906 | E16: 29.68 | F16: 5.88
B17: Intercept | C17: =INTERCEPT(C3:C13,B3:B13) -> 7 | E17: 29.945 | F17: 5.87
E18: 30.21 | F18: 5.86
E19: 30.475 | F19: 5.85
E20: 30.74 | F20: 5.84
E21: 31.005 | F21: 5.83
E22: 31.27 | F22: 5.82
E23: 31.535 | F23: 5.81
E24: 31.8 | F24: 5.8
E25: 32.065 | F25: 5.79
E26: 32.33 | F26: 5.78
E27: 32.595 | F27: 5.77
E28: 32.86 | F28: 5.76
E29: 33.125 | F29: 5.75
E30: 33.39 | F30: 5.74
E31: 33.655 | F31: 5.73
E32: 33.92 | F32: 5.72
E33: 34.185 | F33: 5.71
E34: 34.45 | F34: 5.7
E35: 34.715 | F35: 5.69
E36: 34.98 | F36: 5.68
E37: 35.245 | F37: 5.67
E38: 35.51 | F38: 5.66
E39: 35.775 | F39: 5.65
E40: 36.04 | F40: 5.64
E41: 36.305 | F41: 5.63
E42: 36.57 | F42: 5.62
E43: 36.835 | F43: 5.61
E44: 37.1 | F44: 5.6
E45: 37.365 | F45: 5.59
E46: 37.63 | F46: 5.58
E47: 37.895 | F47: 5.57
E48: 38.16 | F48: 5.56
E49: 38.425 | F49: 5.55
E50: 38.69 | F50: 5.54
E51: 38.955 | F51: 5.53
E52: 39.22 | F52: 5.52
E53: 39.485 | F53: 5.51
E54: 39.75 | F54: 5.5
E55: 40.015 | F55: 5.49
E56: 40.28 | F56: 5.48
E57: 40.545 | F57: 5.47
E58: 40.81 | F58: 5.46
E59: 41.075 | F59: 5.45
E60: 41.34 | F60: 5.44
E61: 41.605 | F61: 5.43
E62: 41.87 | F62: 5.42
E63: 42.135 | F63: 5.41
E64: 42.4 | F64: 5.4
E65: 42.665 | F65: 5.39
E66: 42.93 | F66: 5.38
E67: 43.195 | F67: 5.37
E68: 43.46 | F68: 5.36
E69: 43.725 | F69: 5.35
E70: 43.99 | F70: 5.34
E71: 44.255 | F71: 5.33
E72: 44.52 | F72: 5.32
E73: 44.785 | F73: 5.31
E74: 45.05 | F74: 5.3
E75: 45.315 | F75: 5.29
E76: 45.58 | F76: 5.28
E77: 45.845 | F77: 5.27
E78: 46.11 | F78: 5.26
E79: 46.375 | F79: 5.25
E80: 46.64 | F80: 5.24
E81: 46.905 | F81: 5.23
E82: 47.17 | F82: 5.22
E83: 47.435 | F83: 5.21
E84: 47.7 | F84: 5.2
E85: 47.965 | F85: 5.19
E86: 48.23 | F86: 5.18
E87: 48.495 | F87: 5.17
E88: 48.76 | F88: 5.16
E89: 49.025 | F89: 5.15
E90: 49.29 | F90: 5.14
E91: 49.555 | F91: 5.13
E92: 49.82 | F92: 5.12
E93: 50.085 | F93: 5.11
E94: 50.35 | F94: 5.1
E95: 50.615 | F95: 5.09
E96: 50.88 | F96: 5.08
E97: 51.145 | F97: 5.07
E98: 51.41 | F98: 5.06
E99: 51.675 | F99: 5.05
E100: 51.94 | F100: 5.04
E101: 52.205 | F101: 5.03
E102: 52.47 | F102: 5.02
E103: 52.735 | F103: 5.01
E104: 53 | F104: 5
E105: 53.265 | F105: 4.99
E106: 53.53 | F106: 4.98
E107: 53.795 | F107: 4.97
E108: 54.06 | F108: 4.96
E109: 54.325 | F109: 4.95
E110: 54.59 | F110: 4.94
E111: 54.855 | F111: 4.93
E112: 55.12 | F112: 4.92
E113: 55.385 | F113: 4.91
E114: 55.65 | F114: 4.9
E115: 55.915 | F115: 4.89
E116: 56.18 | F116: 4.88
E117: 56.445 | F117: 4.87
E118: 56.71 | F118: 4.86
E119: 56.975 | F119: 4.85
E120: 57.24 | F120: 4.84
E121: 57.505 | F121: 4.83
E122: 57.77 | F122: 4.82
E123: 58.035 | F123: 4.81
E124: 58.3 | F124: 4.8
E125: 58.565 | F125: 4.79
E126: 58.83 | F126: 4.78
E127: 59.095 | F127: 4.77
E128: 59.36 | F128: 4.76
E129: 59.625 | F129: 4.75
E130: 59.89 | F130: 4.74
E131: 60.155 | F131: 4.73
E132: 60.42 | F132: 4.72
E133: 60.685 | F133: 4.71
E134: 60.95 | F134: 4.7
E135: 61.215 | F135: 4.69
E136: 61.48 | F136: 4.68
E137: 61.745 | F137: 4.67
E138: 62.01 | F138: 4.66
E139: 62.275 | F139: 4.65
E140: 62.54 | F140: 4.64
E141: 62.805 | F141: 4.63
E142: 63.07 | F142: 4.62
E143: 63.335 | F143: 4.61
E144: 63.6 | F144: 4.6
E145: 63.865 | F145: 4.59
E146: 64.13 | F146: 4.58
E147: 64.395 | F147: 4.57
E148: 64.66 | F148: 4.56
E149: 64.925 | F149: 4.55
E150: 65.19 | F150: 4.54
E151: 65.455 | F151: 4.53
E152: 65.72 | F152: 4.52
E153: 65.985 | F153: 4.51
E154: 66.25 | F154: 4.5
E155: 66.515 | F155: 4.49
E156: 66.78 | F156: 4.48
E157: 67.045 | F157: 4.47
E158: 67.31 | F158: 4.46
E159: 67.575 | F159: 4.45
E160: 67.84 | F160: 4.44
E161: 68.105 | F161: 4.43
E162: 68.37 | F162: 4.42
E163: 68.635 | F163: 4.41
E164: 68.9 | F164: 4.4
E165: 69.165 | F165: 4.39
E166: 69.43 | F166: 4.38
E167: 69.695 | F167: 4.37
E168: 69.96 | F168: 4.36
E169: 70.225 | F169: 4.35
E170: 70.49 | F170: 4.34
E171: 70.755 | F171: 4.33
E172: 71.02 | F172: 4.32
E173: 71.285 | F173: 4.31
E174: 71.55 | F174: 4.3
E175: 71.815 | F175: 4.29
E176: 72.08 | F176: 4.28
E177: 72.345 | F177: 4.27
E178: 72.61 | F178: 4.26
E179: 72.875 | F179: 4.25
E180: 73.14 | F180: 4.24
E181: 73.405 | F181: 4.23
E182: 73.67 | F182: 4.22
E183: 73.935 | F183: 4.21
E184: 74.2 | F184: 4.2
E185: 74.465 | F185: 4.19
E186: 74.73 | F186: 4.18
E187: 74.995 | F187: 4.17
E188: 75.26 | F188: 4.16
E189: 75.525 | F189: 4.15
E190: 75.79 | F190: 4.14
E191: 76.055 | F191: 4.13
E192: 76.32 | F192: 4.12
E193: 76.585 | F193: 4.11
E194: 76.85 | F194: 4.1
E195: 77.115 | F195: 4.09
E196: 77.38 | F196: 4.08
E197: 77.645 | F197: 4.07
E198: 77.91 | F198: 4.06
E199: 78.175 | F199: 4.05
E200: 78.44 | F200: 4.04
... 404 more rows

Sheet Rating Bands (hidden)
B3: Stars | C3: Ratio
B4: 0 | C4: 185.5
B5: 1 | C5: =C6+$A$18 -> 159
B6: 1.5 | C6: 145.75
B7: 2 | C7: 132.5
B8: 2.5 | C8: 119.25
B9: 3 | C9: 106
B10: 3.5 | C10: 92.75
B11: 4 | C11: 79.5
B12: 4.5 | C12: 66.25
B13: 5 | C13: 53
B14: 5.5 | C14: 39.75
B15: 6 | C15: 26.5
B16: Interpolated Bands
B17: Stars | C17: Ratio
A18: =26.5/2 -> 13.25 | B18: 0 | C18: 185.5
B19: 0.01 | C19: =FORECAST(B19,OFFSET($C$4,MATCH(B19,$B$4:$B$15,1)-1,0,2), OFFSET($B$4,MATCH(B19,$B$4:$B$15,1)-1,0,2)) -> 185.235
B20: 0.02 | C20: =FORECAST(B20,OFFSET($C$4,MATCH(B20,$B$4:$B$15,1)-1,0,2), OFFSET($B$4,MATCH(B20,$B$4:$B$15,1)-1,0,2)) -> 184.97
B21: 0.03 | C21: 184.705
B22: 0.04 | C22: 184.44
B23: 0.05 | C23: 184.175
B24: 0.06 | C24: 183.91
B25: 0.07 | C25: 183.645
B26: 0.08 | C26: 183.38
B27: 0.09 | C27: 183.115
B28: 0.1 | C28: 182.85
B29: 0.11 | C29: 182.585
B30: 0.12 | C30: 182.32
B31: 0.13 | C31: 182.055
B32: 0.14 | C32: 181.79
B33: 0.15 | C33: 181.525
B34: 0.16 | C34: 181.26
B35: 0.17 | C35: 180.995
B36: 0.18 | C36: 180.73
B37: 0.19 | C37: 180.465
B38: 0.2 | C38: 180.2
B39: 0.21 | C39: 179.935
B40: 0.22 | C40: 179.67
B41: 0.23 | C41: 179.405
B42: 0.24 | C42: 179.14
B43: 0.25 | C43: 178.875
B44: 0.26 | C44: 178.61
B45: 0.27 | C45: 178.345
B46: 0.28 | C46: 178.08
B47: 0.29 | C47: 177.815
B48: 0.3 | C48: 177.55
B49: 0.31 | C49: 177.285
B50: 0.32 | C50: 177.02
B51: 0.33 | C51: 176.755
B52: 0.34 | C52: 176.49
B53: 0.35 | C53: 176.225
B54: 0.36 | C54: 175.96
B55: 0.37 | C55: 175.695
B56: 0.38 | C56: 175.43
B57: 0.39 | C57: 175.165
B58: 0.4 | C58: 174.9
B59: 0.41 | C59: 174.635
B60: 0.42 | C60: 174.37
B61: 0.43 | C61: 174.105
B62: 0.44 | C62: 173.84
B63: 0.45 | C63: 173.575
B64: 0.46 | C64: 173.31
B65: 0.47 | C65: 173.045
B66: 0.48 | C66: 172.78
B67: 0.49 | C67: 172.515
B68: 0.5 | C68: 172.25
B69: 0.51 | C69: 171.985
B70: 0.52 | C70: 171.72
B71: 0.53 | C71: 171.455
B72: 0.54 | C72: 171.19
B73: 0.55 | C73: 170.925
B74: 0.56 | C74: 170.66
B75: 0.57 | C75: 170.395
B76: 0.58 | C76: 170.13
B77: 0.59 | C77: 169.865
B78: 0.6 | C78: 169.6
B79: 0.61 | C79: 169.335
B80: 0.62 | C80: 169.07
B81: 0.63 | C81: 168.805
B82: 0.64 | C82: 168.54
B83: 0.65 | C83: 168.275
B84: 0.66 | C84: =FORECAST(B84,OFFSET($C$4,MATCH(B84,$B$4:$B$15,1)-1,0,2), OFFSET($B$4,MATCH(B84,$B$4:$B$15,1)-1,0,2)) -> 168.01
B85: 0.67 | C85: 167.745
B86: 0.68 | C86: 167.48
B87: 0.69 | C87: 167.215
B88: 0.7 | C88: 166.95
B89: 0.71 | C89: 166.685
B90: 0.72 | C90: 166.42
B91: 0.73 | C91: 166.155
B92: 0.74 | C92: 165.89
B93: 0.75 | C93: 165.625
B94: 0.76 | C94: 165.36
B95: 0.77 | C95: 165.095
B96: 0.78 | C96: 164.83
B97: 0.79 | C97: 164.565
B98: 0.8 | C98: 164.3
B99: 0.81 | C99: 164.035
B100: 0.82 | C100: 163.77
B101: 0.83 | C101: 163.505
B102: 0.84 | C102: 163.24
B103: 0.85 | C103: 162.975
B104: 0.86 | C104: 162.71
B105: 0.87 | C105: 162.445
B106: 0.88 | C106: 162.18
B107: 0.89 | C107: 161.915
B108: 0.9 | C108: 161.65
B109: 0.91 | C109: 161.385
B110: 0.92 | C110: 161.12
B111: 0.93 | C111: 160.855
B112: 0.94 | C112: 160.59
B113: 0.95 | C113: 160.325
B114: 0.96 | C114: 160.06
B115: 0.97 | C115: 159.795
B116: 0.98 | C116: 159.53
B117: 0.99 | C117: 159.265
B118: 1 | C118: 159
B119: 1.01 | C119: 158.735
B120: 1.02 | C120: 158.47
B121: 1.03 | C121: 158.205
B122: 1.04 | C122: 157.94
B123: 1.05 | C123: 157.675
B124: 1.06 | C124: 157.41
B125: 1.07 | C125: 157.145
B126: 1.08 | C126: 156.88
B127: 1.09 | C127: 156.615
B128: 1.1 | C128: 156.35
B129: 1.11 | C129: 156.085
B130: 1.12 | C130: 155.82
B131: 1.13 | C131: 155.555
B132: 1.14 | C132: 155.29
B133: 1.15 | C133: 155.025
B134: 1.16 | C134: 154.76
B135: 1.17 | C135: 154.495
B136: 1.18 | C136: 154.23
B137: 1.19 | C137: 153.965
B138: 1.2 | C138: 153.7
B139: 1.21 | C139: 153.435
B140: 1.22 | C140: 153.17
B141: 1.23 | C141: 152.905
B142: 1.24 | C142: 152.64
B143: 1.25 | C143: 152.375
B144: 1.26 | C144: 152.11
B145: 1.27 | C145: 151.845
B146: 1.28 | C146: 151.58
B147: 1.29 | C147: 151.315
B148: 1.3 | C148: =FORECAST(B148,OFFSET($C$4,MATCH(B148,$B$4:$B$15,1)-1,0,2), OFFSET($B$4,MATCH(B148,$B$4:$B$15,1)-1,0,2)) -> 151.05
B149: 1.31 | C149: 150.785
B150: 1.32 | C150: 150.52
B151: 1.33 | C151: 150.255
B152: 1.34 | C152: 149.99
B153: 1.35 | C153: 149.725
B154: 1.36 | C154: 149.46
B155: 1.37 | C155: 149.195
B156: 1.38 | C156: 148.93
B157: 1.39 | C157: 148.665
B158: 1.4 | C158: 148.4
B159: 1.41 | C159: 148.135
B160: 1.42 | C160: 147.87
B161: 1.43 | C161: 147.605
B162: 1.44 | C162: 147.34
B163: 1.45 | C163: 147.075
B164: 1.46 | C164: 146.81
B165: 1.47 | C165: 146.545
B166: 1.48 | C166: 146.28
B167: 1.49 | C167: 146.015
B168: 1.5 | C168: 145.75
B169: 1.51 | C169: 145.485
B170: 1.52 | C170: 145.22
B171: 1.53 | C171: 144.955
B172: 1.54 | C172: 144.69
B173: 1.55 | C173: 144.425
B174: 1.56 | C174: 144.16
B175: 1.57 | C175: 143.895
B176: 1.58 | C176: 143.63
B177: 1.59 | C177: 143.365
B178: 1.6 | C178: 143.1
B179: 1.61 | C179: 142.835
B180: 1.62 | C180: 142.57
B181: 1.63 | C181: 142.305
B182: 1.64 | C182: 142.04
B183: 1.65 | C183: 141.775
B184: 1.66 | C184: 141.51
B185: 1.67 | C185: 141.245
B186: 1.68 | C186: 140.98
B187: 1.69 | C187: 140.715
B188: 1.7 | C188: 140.45
B189: 1.71 | C189: 140.185
B190: 1.72 | C190: 139.92
B191: 1.73 | C191: 139.655
B192: 1.74 | C192: 139.39
B193: 1.75 | C193: 139.125
B194: 1.76 | C194: 138.86
B195: 1.77 | C195: 138.595
B196: 1.78 | C196: 138.33
B197: 1.79 | C197: 138.065
B198: 1.8 | C198: 137.8
B199: 1.81 | C199: 137.535
B200: 1.82 | C200: 137.27
B201: 1.83 | C201: 137.005
B202: 1.84 | C202: 136.74
... 416 more rows

Sheet NGA Factors 2020 (hidden)
A1: Fuel Type | B1: State | D1: Scope 1 EF | E1: Scope 2 EF | F1: Scope 3 EF | G1: Emissions Factors unit (scope 1, scope 2 and scope 3 | H1: Energy Content Factor | I1: Emissions Content Factor unit | J1: Scopes 1&2 | K1: Scopes 1,2&3 | L1: Emissions Factors unit (scope 1&2 and 1,2&3) | M1: Scopes 1&2 | N1: Scopes 1,2&3 | O1: Emissions Factors unit (scope 1&2 and 1,2&3)
A2: Electricity | B2: ACT | C2: =CONCATENATE(B2,A2) -> ACTElectricity | D2: 0 | E2: 0.81 | F2: 0.09 | G2: kgCO2-e/kWh | J2: 0.81 | K2: 0.9 | L2: kgCO2-e/kWh | M2: =J2 -> 0.81 | N2: =K2 -> 0.9 | O2: kgCO2-e/kWh
A3: Electricity | B3: NSW | C3: =CONCATENATE(B3,A3) -> NSWElectricity | D3: 0 | E3: 0.81 | F3: 0.09 | G3: kgCO2-e/kWh | J3: 0.81 | K3: 0.9 | L3: kgCO2-e/kWh | M3: =J3 -> 0.81 | N3: 0.9 | O3: kgCO2-e/kWh
A4: Electricity | B4: NT | C4: NTElectricity | D4: 0 | E4: 0.62 | F4: 0.07 | G4: kgCO2-e/kWh | J4: 0.62 | K4: 0.69 | L4: kgCO2-e/kWh | M4: 0.62 | N4: 0.69 | O4: kgCO2-e/kWh
A5: Electricity | B5: QLD | C5: QLDElectricity | D5: 0 | E5: 0.81 | F5: 0.12 | G5: kgCO2-e/kWh | J5: 0.81 | K5: 0.93 | L5: kgCO2-e/kWh | M5: 0.81 | N5: 0.93 | O5: kgCO2-e/kWh
A6: Electricity | B6: SA | C6: SAElectricity | D6: 0 | E6: 0.43 | F6: 0.09 | G6: kgCO2-e/kWh | J6: 0.43 | K6: 0.52 | L6: kgCO2-e/kWh | M6: 0.43 | N6: 0.52 | O6: kgCO2-e/kWh
A7: Electricity | B7: TAS | C7: TASElectricity | D7: 0 | E7: 0.17 | F7: 0.02 | G7: kgCO2-e/kWh | J7: 0.17 | K7: 0.19 | L7: kgCO2-e/kWh | M7: 0.17 | N7: 0.19 | O7: kgCO2-e/kWh
A8: Electricity | B8: VIC | C8: VICElectricity | D8: 0 | E8: 0.98 | F8: 0.11 | G8: kgCO2-e/kWh | J8: 0.98 | K8: 1.09 | L8: kgCO2-e/kWh | M8: 0.98 | N8: 1.09 | O8: kgCO2-e/kWh
A9: Electricity | B9: WA | C9: WAElectricity | D9: 0 | E9: 0.68 | F9: 0.02 | G9: kgCO2-e/kWh | J9: 0.68 | K9: 0.7 | L9: kgCO2-e/kWh | M9: 0.68 | N9: 0.7 | O9: kgCO2-e/kWh
A10: Gas | B10: ACT | C10: ACTGas | D10: 51.53 | E10: 0 | F10: 13.1 | G10: kgCO2-e/GJ | J10: 0.05153 | K10: 0.06463 | L10: kgCO2-e/MJ | M10: =J10*3.6 -> 0.185508 | N10: =K10*3.6 -> 0.232668 | O10: kgCO2-e/kWh
A11: Gas | B11: NSW | C11: NSWGas | D11: 51.53 | E11: 0 | F11: 13.1 | G11: kgCO2-e/GJ | J11: 0.05153 | K11: 0.06463 | L11: kgCO2-e/MJ | M11: =J11*3.6 -> 0.185508 | N11: 0.232668 | O11: kgCO2-e/kWh
A12: Gas | B12: NT | C12: NTGas | D12: 51.53 | E12: 0 | F12: 0 | G12: kgCO2-e/GJ | J12: 0.05153 | K12: 0.05153 | L12: kgCO2-e/MJ | M12: 0.185508 | N12: =K12*3.6 -> 0.185508 | O12: kgCO2-e/kWh
A13: Gas | B13: QLD | C13: QLDGas | D13: 51.53 | E13: 0 | F13: 8.8 | G13: kgCO2-e/GJ | J13: 0.05153 | K13: 0.06033 | L13: kgCO2-e/MJ | M13: 0.185508 | N13: 0.217188 | O13: kgCO2-e/kWh
A14: Gas | B14: SA | C14: SAGas | D14: 51.53 | E14: 0 | F14: 10.7 | G14: kgCO2-e/GJ | J14: 0.05153 | K14: 0.06223 | L14: kgCO2-e/MJ | M14: 0.185508 | N14: 0.224028 | O14: kgCO2-e/kWh
A15: Gas | B15: TAS | C15: TASGas | D15: 51.53 | E15: 0 | F15: 0 | G15: kgCO2-e/GJ | J15: 0.05153 | K15: 0.05153 | L15: kgCO2-e/MJ | M15: 0.185508 | N15: 0.185508 | O15: kgCO2-e/kWh
A16: Gas | B16: VIC | C16: VICGas | D16: 51.53 | E16: 0 | F16: 4 | G16: kgCO2-e/GJ | J16: 0.05153 | K16: 0.05553 | L16: kgCO2-e/MJ | M16: 0.185508 | N16: 0.199908 | O16: kgCO2-e/kWh
A17: Gas | B17: WA | C17: WAGas | D17: 51.53 | E17: 0 | F17: 4.1 | G17: kgCO2-e/GJ | J17: 0.05153 | K17: 0.05563 | L17: kgCO2-e/MJ | M17: 0.185508 | N17: 0.200268 | O17: kgCO2-e/kWh
A18: Coal | B18: All states | D18: 90.24 | E18: 0 | F18: 3 | G18: kgCO2-e/GJ | H18: 27 | I18: GJ/t | J18: 2.43648 | K18: 2.51748 | L18: kgCO2-e/kg | M18: =(D18+E18)*0.0036 -> 0.324864 | N18: =(D18+E18+F18)*0.0036 -> 0.335664 | O18: kgCO2-e/kWh
A19: Diesel Oil | B19: All states | D19: 70.2 | E19: 0 | F19: 3.6 | G19: kgCO2-e/GJ | H19: 38.6 | I19: GJ/kL | J19: 2.70972 | K19: 2.84868 | L19: kgCO2-e/L | M19: =(D19+E19)*0.0036 -> 0.25272 | N19: =(D19+E19+F19)*0.0036 -> 0.26568 | O19: kgCO2-e/kWh
A20: LPG | B20: All states | D20: 60.6 | E20: 0 | F20: 3.6 | G20: kgCO2-e/GJ | H20: 25.7 | I20: GJ/kL | J20: 1.55742 | K20: 1.64994 | L20: kgCO2-e/L | M20: =(D20+E20)*0.0036 -> 0.21816 | N20: =(D20+E20+F20)*0.0036 -> 0.23112 | O20: kgCO2-e/kWh
